Workbook

Sheet Introduction
A3: D.T2.2.3 Methodology to test the tool to assess public investments for industry's low carbon transition
A4: Annex II - Project level tool calculator
A5: Local specification: Poland

Sheet Project_economical_evaluation
A1: EN
B2: Company name: | E2: Description:
B3: Project name:
B4: Project ID:
B5: Date:
B6: INPUT | E6: INPUT | J6: OUTPUT
B7: Investment | C7: Total | D7: 105000 | E7: Expected energy savings & cost of energy | F7: Electricity | G7: 15 | H7: MWh | I7: 200 | J7: OUTPUT | K7: Expected drop of CO2 emissions | L7: =(Emission_factors_energy!D12 * G7)*(0.0036/VLOOKUP(H7,Table4[],2,FALSE))+(Emission_factors_energy!D67 * G8)*(0.0036/VLOOKUP(H8,Table4[],2,FALSE))+(Emission_factors_energy!D11 * G9)*(0.0036/VLOOKUP(H9,Table4[],2,FALSE))+(Emission_factors_energy!D49 * G10)*(0.0036/VLOOKUP(H10,Table4[],2,FALSE))+(Emission_factors_energy!D85 * G11)*(0.0036/VLOOKUP(H11,Table4[],2,FALSE))+(Emission_factors_energy!D40 * G12)*(0.0036/VLOOKUP(H12,Table4[],2,FALSE))+(Emission_factors_energy!D31 * G13)*(0.0036/VLOOKUP(H13,Table4[],2,FALSE)) -> 23454.29667
C8: Loan | D8: 0.6 | F8: Natural Gas | G8: 15000 | H8: kWh | I8: 0.2 | K8: Expected drop of CH4 emissions | L8: 0
C9: Own Resource | D9: 0.1 | F9: Coal | G9: 0 | H9: kWh | I9: 0.2 | K9: Expected drop of N2O emissions | L9: =(Emission_factors_energy!F12 * G7)*(0.0036/VLOOKUP(H7,Table4[],2,FALSE))+(Emission_factors_energy!F67 * G8)*(0.0036/VLOOKUP(H8,Table4[],2,FALSE))+(Emission_factors_energy!F11 * G9)*(0.0036/VLOOKUP(H9,Table4[],2,FALSE))+(Emission_factors_energy!F49 * G10)*(0.0036/VLOOKUP(H10,Table4[],2,FALSE))+(Emission_factors_energy!F85 * G11)*(0.0036/VLOOKUP(H11,Table4[],2,FALSE))+(Emission_factors_energy!F40 * G12)*(0.0036/VLOOKUP(H12,Table4[],2,FALSE))+(Emission_factors_energy!F31 * G13)*(0.0036/VLOOKUP(H13,Table4[],2,FALSE)) -> 254.4015833
C10: Subsidy | D10: 0.3 | F10: Heat | G10: 15000 | H10: kWh | I10: 0.0002 | K10: Expected drop of CO2eq emissions | L10: =L7+0.025*L8+0.298*L9 -> 23530.10834
B11: Loan | C11: Interest rate | D11: 0.02 | F11: Solid biofuels | G11: 5000 | H11: kWh | I11: 0.7 | K11: Expected Cash Flow | L11: =SUMPRODUCT(G7:G13,I7:I13) -> 9503
C12: Repay | D12: 20 | F12: Gaseous biofuels | G12: 0 | H12: kWh | I12: 0.7 | K12: Net Present Value | L12: 59913.06812
B13: Own Resource | C13: Discount rate | D13: 0.05 | F13: Other fuels | G13: 0 | H13: kWh | I13: 0.2 | K13: Simple payback : | L13: =D7/L11 -> 11.04914238
B14: Measure | C14: Lifetime/expected payback period | D14: 20 | F14: Total | G14: 50000 | H14: kWh | I14: 0.19006 | K14: Equivalent scenario without loan investment
K15: Own ressources investment | L15: 58515.31676
K16: Subsidy share: | L16: =IF(L15=0,"",(D7-L15)/D7) -> 0.4427112689

Sheet Languages (hidden)
A1: EN | B1: BG | C1: CS | D1: DE | E1: EL | F1: ES | G1: ET | H1: FI | I1: FR | J1: GA | K1: HR | L1: HU | M1: IT | N1: LT | O1: LV | P1: MK | Q1: NL | R1: PL | S1: PT | T1: SL | U1: SK
A2: 1 | B2: 2 | C2: 3 | D2: 4 | E2: 5 | F2: 6 | G2: 7 | H2: 8 | I2: 9 | J2: 10 | K2: 11 | L2: 12 | M2: 13 | N2: 14 | O2: 15 | P2: 16 | Q2: 17 | R2: 18 | S2: 19 | T2: 20 | U2: 21
A4: Investment | I4: Investissement
A5: Loan | I5: Pret
A6: Own Resource | I6: Capitaux Propres
A7: Measure | I7: Mesure
A8: Total | I8: Total
A9: Subsidy | I9: Subvention
A10: Interest rate | I10: Taux d'interet
A11: Repay | I11: Reversement
A12: Discount rate | I12: Taux d'actualisation
A13: Lifetime/expected payback period | I13: Duree de vie/periode de remboursement attendu
A14: INPUT | I14: ENTRÉE
A15: OUTPUT | I15: SORTIE
A16: Electricity | I16: Electricite
A17: Natural Gas | I17: Gaz Naturel
A18: Coal | I18: Charbon
A19: Heat | I19: Chaleur
A20: Solid biofuels | I20: Biocarburants solides
A21: Gaseous biofuels | I21: Biocarburants gazeux
A22: Other fuels | I22: Carburants autres
A23: Total | I23: Total
A24: Energy savings | I24: Econonomie d'energie
A25: Expected energy savings & cost of energy | I25: Economie d'energie attendu & cout des energies
A26: Period | I26: Periode
A27: Cumulative Discounted Cash Flow | I27: Cumul des flux de tresorerie actualise
A28: Cumulative Discounted Cash Flow of Own ressource and Subsidy combination investment without loan, equivalent to the current investment share | I28: Cumul des flux de tresorerie actualise d'investissement de capitaux propre et de subvention sans recours a un pret, equivalent aux parts d'investissement actuelles
A29: Cash Flow | I29: Flux de tresorerie
A30: Positive Cash Flow | I30: Flux de tresorerie positif
A31: Negative Cash Flow | I31: Flux de tresorerie negatif
A32: Expected drop of CO2 emissions | I32: Reductions d'emission de CO2 attendu
A33: Expected drop of CH4 emissions | I33: Reductions d'emission de CH4 attendu
A34: Expected drop of N2O emissions | I34: Reductions d'emission de N2O attendu
A35: Expected drop of CO2eq emissions | I35: Reductions d'emission de CO2eq attendu
A36: Expected Cash Flow | I36: Flux financier attendu
A37: Net Present Value | I37: Valeur nette actualisee
A38: Simple payback : | I38: Delai de recuperation simple:
A39: years | I39: Ans
A40: Equivalent scenario without loan investment | I40: Scenario equivalent sans recours a un pret
A41: Own ressources investment | I41: Investissement de capitaux propre
A42: Subsidy share: | I42: Part de subvention:
A43: Energy cost | I43: Couts de l'energie

Sheet Emission_factors_energy (hidden)
A1: Saved energy carrier | B1: Sector | C1: Key | D1: CO2 [kg/GJ] | E1: CH4 [g/GJ] | F1: N2O [g/GJ]
A2: All energy carriers | B2: Industry | C2: =A2 & "#" & B2 -> All energy carriers#Industry | D2: 92.2 | E2: 6.78 | F2: 0.99
A3: All energy carriers | B3: Industry - food and tobacco | C3: All energy carriers#Industry - food and tobacco | D3: 90.55 | E3: 8.61 | F3: 1.31
A4: All energy carriers | B4: Industry - fuel mining and processing | C4: All energy carriers#Industry - fuel mining and processing | D4: 74.13689963 | E4: 6.574617454 | F4: 0.9677883032
A5: All energy carriers | B5: Industry - chemical and petrochemical | C5: All energy carriers#Industry - chemical and petrochemical | D5: 92.65222429 | E5: 11.3698286 | F5: 1.577148377
A6: All energy carriers | B6: Industry - iron and steel | C6: All energy carriers#Industry - iron and steel | D6: 107.7439276 | E6: 2.998649382 | F6: 0.4153546264
A7: All energy carriers | B7: Industry - mineral materials | C7: All energy carriers#Industry - mineral materials | D7: 85.78670946 | E7: 8.034624647 | F7: 1.194653379
A8: All energy carriers | B8: Industry - nonferrous metalls | C8: All energy carriers#Industry - nonferrous metalls | D8: 88.76730828 | E8: 7.621635958 | F8: 1.109051544
A9: All energy carriers | B9: Industry - other | C9: All energy carriers#Industry - other | D9: 82.2733061 | E9: 6.656799738 | F9: 0.9866173864
A10: All energy carriers | B10: Industry - paper, pulp, polygraphic industry | C10: All energy carriers#Industry - paper, pulp, polygraphic industry | D10: 79.36407264 | E10: 9.042913534 | F10: 1.360387689
A11: Coal | B11: Industry | C11: Coal#Industry | D11: 69.71905588 | E11: 1.073314672 | F11: 0.2830363884
A12: Electricity | B12: Energy | C12: Electricity#Energy | D12: 285.12 | E12: 2.85 | F12: 2.35
A13: Electricity | B13: Industry | C13: Electricity#Industry | D13: 285.12 | E13: 2.85 | F13: 2.35
A14: Electricity | B14: Industry - food and tobacco | C14: Electricity#Industry - food and tobacco | D14: 285.12 | E14: 2.85 | F14: 2.35
A15: Electricity | B15: Industry - fuel mining and processing | C15: Electricity#Industry - fuel mining and processing | D15: 285.12 | E15: 2.85 | F15: 2.35
A16: Electricity | B16: Industry - chemical and petrochemical | C16: Electricity#Industry - chemical and petrochemical | D16: 285.12 | E16: 2.85 | F16: 2.35
A17: Electricity | B17: Industry - iron and steel | C17: Electricity#Industry - iron and steel | D17: 285.12 | E17: 2.85 | F17: 2.35
A18: Electricity | B18: Industry - mineral materials | C18: Electricity#Industry - mineral materials | D18: 285.12 | E18: 2.85 | F18: 2.35
A19: Electricity | B19: Industry - nonferrous metalls | C19: Electricity#Industry - nonferrous metalls | D19: 285.12 | E19: 2.85 | F19: 2.35
A20: Electricity | B20: Industry - other | C20: Electricity#Industry - other | D20: 285.12 | E20: 2.85 | F20: 2.35
A21: Electricity | B21: Industry - paper, pulp, polygraphic industry | C21: Electricity#Industry - paper, pulp, polygraphic industry | D21: 285.12 | E21: 2.85 | F21: 2.35
A22: Fuels and heat | B22: Industry | C22: Fuels and heat#Industry | D22: 73.84812998 | E22: 2.927857975 | F22: 0.5819644937
A23: Fuels and heat | B23: Industry - food and tobacco | C23: Fuels and heat#Industry - food and tobacco | D23: 76.45577413 | E23: 1.177936234 | F23: 0.351235034
A24: Fuels and heat | B24: Industry - fuel mining and processing | C24: Fuels and heat#Industry - fuel mining and processing | D24: 62.18068972 | E24: 0.6068923109 | F24: 0.08241636989
A25: Fuels and heat | B25: Industry - chemical and petrochemical | C25: Fuels and heat#Industry - chemical and petrochemical | D25: 90.56302591 | E25: 1.671474289 | F25: 0.5723348369
A26: Fuels and heat | B26: Industry - iron and steel | C26: Fuels and heat#Industry - iron and steel | D26: 85.02646533 | E26: 2.809978652 | F26: 0.5153975057
A27: Fuels and heat | B27: Industry - mineral materials | C27: Fuels and heat#Industry - mineral materials | D27: 56.09587649 | E27: 5.283467448 | F27: 0.8204951183
A28: Fuels and heat | B28: Industry - nonferrous metalls | C28: Fuels and heat#Industry - nonferrous metalls | D28: 65.85941924 | E28: 0.9935953218 | F28: 0.1626006349
A29: Fuels and heat | B29: Industry - other | C29: Fuels and heat#Industry - other | D29: 83.64712916 | E29: 1.519937435 | F29: 0.4784908933
A30: Fuels and heat | B30: Industry - paper, pulp, polygraphic industry | C30: Fuels and heat#Industry - paper, pulp, polygraphic industry | D30: 90.74803161 | E30: 1.640493676 | F30: 0.5661201999
A31: Other fuels | B31: Industry | C31: Other fuels#Industry | D31: 69.98520943 | E31: 2.251031255 | F31: 0.4127578139
A32: Other fuels | B32: Industry - food and tobacco | C32: Other fuels#Industry - food and tobacco | D32: 69.2158238 | E32: 0.8805741806 | F32: 0.1542798575
A33: Other fuels | B33: Industry - fuel mining and processing | C33: Other fuels#Industry - fuel mining and processing | D33: 64.60728214 | E33: 0.3885901491 | F33: 0.05181201987
A34: Other fuels | B34: Industry - chemical and petrochemical | C34: =A34 & "#" & B34 -> Other fuels#Industry - chemical and petrochemical | D34: 82.44680947 | E34: 1.688675701 | F34: 0.3269811269
A35: Other fuels | B35: Industry - iron and steel | C35: Other fuels#Industry - iron and steel | D35: 87.72499333 | E35: 1.940578185 | F35: 0.3735872582
A36: Other fuels | B36: Industry - mineral materials | C36: Other fuels#Industry - mineral materials | D36: 58.04810212 | E36: 3.458858515 | F36: 0.620120421
A37: Other fuels | B37: Industry - nonferrous metalls | C37: Other fuels#Industry - nonferrous metalls | D37: 67.73973226 | E37: 0.6463850338 | F37: 0.1047871983
A38: Other fuels | B38: Industry - other | C38: Other fuels#Industry - other | D38: 79.15030156 | E38: 1.207910971 | F38: 0.2828750193
A39: Other fuels | B39: Industry - paper, pulp, polygraphic industry | C39: Other fuels#Industry - paper, pulp, polygraphic industry | D39: 82.83448911 | E39: 1.649103435 | F39: 0.3176701549
A40: Gaseous biofuels | B40: Industry | C40: Gaseous biofuels#Industry | D40: 0 | E40: 17.68634373 | F40: 2.490115278
A41: Gaseous biofuels | B41: Industry - food and tobacco | C41: Gaseous biofuels#Industry - food and tobacco | D41: 0 | E41: 2.797618618 | F41: 0.3639862776
A42: Gaseous biofuels | B42: Industry - fuel mining and processing | C42: Gaseous biofuels#Industry - fuel mining and processing | D42: 0 | E42: 0 | F42: 0
A43: Gaseous biofuels | B43: Industry - chemical and petrochemical | C43: Gaseous biofuels#Industry - chemical and petrochemical | D43: 0 | E43: 29.1 | F43: 4.12
A44: Gaseous biofuels | B44: Industry - iron and steel | C44: Gaseous biofuels#Industry - iron and steel | D44: 0 | E44: 29.1 | F44: 4.119999999
A45: Gaseous biofuels | B45: Industry - mineral materials | C45: Gaseous biofuels#Industry - mineral materials | D45: 0 | E45: 29.1 | F45: 4.12
A46: Gaseous biofuels | B46: Industry - nonferrous metalls | C46: Gaseous biofuels#Industry - nonferrous metalls | D46: 0 | E46: 29.1 | F46: 4.12
A47: Gaseous biofuels | B47: Industry - other | C47: Gaseous biofuels#Industry - other | D47: 0 | E47: 27.9108513 | F47: 3.950188043
A48: Gaseous biofuels | B48: Industry - paper, pulp, polygraphic industry | C48: Gaseous biofuels#Industry - paper, pulp, polygraphic industry | D48: 0 | E48: 19.11712854 | F48: 2.69443318
A49: Heat | B49: Industry | C49: Heat#Industry | D49: 93.42339256 | E49: 1.362119017 | F49: 1.419236428
A50: Heat | B50: Industry - food and tobacco | C50: Heat#Industry - food and tobacco | D50: 93.42339256 | E50: 1.362119017 | F50: 1.419236428
A51: Heat | B51: Industry - fuel mining and processing | C51: Heat#Industry - fuel mining and processing | D51: 93.42339256 | E51: 1.362119017 | F51: 1.419236428
A52: Heat | B52: Industry - chemical and petrochemical | C52: Heat#Industry - chemical and petrochemical | D52: 93.42339256 | E52: 1.362119017 | F52: 1.419236428
A53: Heat | B53: Industry - iron and steel | C53: Heat#Industry - iron and steel | D53: 93.42339256 | E53: 1.362119017 | F53: 1.419236428
A54: Heat | B54: Industry - mineral materials | C54: Heat#Industry - mineral materials | D54: 93.42339256 | E54: 1.362119017 | F54: 1.419236428
A55: Heat | B55: Industry - nonferrous metalls | C55: Heat#Industry - nonferrous metalls | D55: 93.42339256 | E55: 1.362119017 | F55: 1.419236428
A56: Heat | B56: Industry - other | C56: Heat#Industry - other | D56: 93.42339256 | E56: 1.362119017 | F56: 1.419236428
A57: Heat | B57: Industry - paper, pulp, polygraphic industry | C57: Heat#Industry - paper, pulp, polygraphic industry | D57: 93.42339256 | E57: 1.362119017 | F57: 1.419236428
A58: Liquid biofuels | B58: Industry | C58: Liquid biofuels#Industry | D58: 0 | E58: 17.68634373 | F58: 2.490115278
A59: Liquid biofuels | B59: Industry - food and tobacco | C59: Liquid biofuels#Industry - food and tobacco | D59: 0 | E59: 2.797618618 | F59: 0.3639862776
A60: Liquid biofuels | B60: Industry - fuel mining and processing | C60: Liquid biofuels#Industry - fuel mining and processing | D60: 0 | E60: 0 | F60: 0
A61: Liquid biofuels | B61: Industry - chemical and petrochemical | C61: Liquid biofuels#Industry - chemical and petrochemical | D61: 0 | E61: 29.1 | F61: 4.12
A62: Liquid biofuels | B62: Industry - iron and steel | C62: Liquid biofuels#Industry - iron and steel | D62: 0 | E62: 29.1 | F62: 4.119999999
A63: Liquid biofuels | B63: Industry - mineral materials | C63: Liquid biofuels#Industry - mineral materials | D63: 0 | E63: 29.1 | F63: 4.12
A64: Liquid biofuels | B64: Industry - nonferrous metalls | C64: Liquid biofuels#Industry - nonferrous metalls | D64: 0 | E64: 29.1 | F64: 4.12
A65: Liquid biofuels | B65: Industry - other | C65: Liquid biofuels#Industry - other | D65: 0 | E65: 27.9108513 | F65: 3.950188043
A66: Liquid biofuels | B66: Industry - paper, pulp, polygraphic industry | C66: =A66 & "#" & B66 -> Liquid biofuels#Industry - paper, pulp, polygraphic industry | D66: 0 | E66: 19.11712854 | F66: 2.69443318
A67: Natural gas | B67: Industry | C67: Natural gas#Industry | D67: 55.79543457 | E67: 1.047462311 | F67: 0.1118655777
A68: Natural gas | B68: Industry - food and tobacco | C68: Natural gas#Industry - food and tobacco | D68: 55.79543457 | E68: 1.047462311 | F68: 0.1118655777
A69: Natural gas | B69: Industry - fuel mining and processing | C69: Natural gas#Industry - fuel mining and processing | D69: 55.79543457 | E69: 1.047462311 | F69: 0.1118655777
A70: Natural gas | B70: Industry - chemical and petrochemical | C70: Natural gas#Industry - chemical and petrochemical | D70: 55.79543457 | E70: 1.047462311 | F70: 0.1118655777
A71: Natural gas | B71: Industry - iron and steel | C71: Natural gas#Industry - iron and steel | D71: 55.79543457 | E71: 1.047462311 | F71: 0.1118655777
A72: Natural gas | B72: Industry - mineral materials | C72: Natural gas#Industry - mineral materials | D72: 55.79543457 | E72: 1.047462311 | F72: 0.1118655777
A73: Natural gas | B73: Industry - nonferrous metalls | C73: Natural gas#Industry - nonferrous metalls | D73: 55.79543457 | E73: 1.047462311 | F73: 0.1118655777
A74: Natural gas | B74: Industry - other | C74: Natural gas#Industry - other | D74: 55.79543457 | E74: 1.047462311 | F74: 0.1118655777
A75: Natural gas | B75: Industry - paper, pulp, polygraphic industry | C75: Natural gas#Industry - paper, pulp, polygraphic industry | D75: 55.79543457 | E75: 1.047462311 | F75: 0.1118655777
A76: RES except biomass | B76: Industry | C76: RES except biomass#Industry | D76: 0 | E76: 0 | F76: 0
A77: RES except biomass | B77: Industry - food and tobacco | C77: RES except biomass#Industry - food and tobacco | D77: 0 | E77: 0 | F77: 0
A78: RES except biomass | B78: Industry - fuel mining and processing | C78: RES except biomass#Industry - fuel mining and processing | D78: 0 | E78: 0 | F78: 0
A79: RES except biomass | B79: Industry - chemical and petrochemical | C79: RES except biomass#Industry - chemical and petrochemical | D79: 0 | E79: 0 | F79: 0
A80: RES except biomass | B80: Industry - iron and steel | C80: RES except biomass#Industry - iron and steel | D80: 0 | E80: 0 | F80: 0
A81: RES except biomass | B81: Industry - mineral materials | C81: RES except biomass#Industry - mineral materials | D81: 0 | E81: 0 | F81: 0
A82: RES except biomass | B82: Industry - nonferrous metalls | C82: RES except biomass#Industry - nonferrous metalls | D82: 0 | E82: 0 | F82: 0
A83: RES except biomass | B83: Industry - other | C83: RES except biomass#Industry - other | D83: 0 | E83: 0 | F83: 0
A84: RES except biomass | B84: Industry - paper, pulp, polygraphic industry | C84: RES except biomass#Industry - paper, pulp, polygraphic industry | D84: 0 | E84: 0 | F84: 0
A85: Solid biofuels | B85: Industry | C85: Solid biofuels#Industry | D85: 0 | E85: 17.68634373 | F85: 2.490115278
A86: Solid biofuels | B86: Industry - food and tobacco | C86: Solid biofuels#Industry - food and tobacco | D86: 0 | E86: 2.797618618 | F86: 0.3639862776
A87: Solid biofuels | B87: Industry - fuel mining and processing | C87: Solid biofuels#Industry - fuel mining and processing | D87: 0 | E87: 0 | F87: 0
A88: Solid biofuels | B88: Industry - chemical and petrochemical | C88: Solid biofuels#Industry - chemical and petrochemical | D88: 0 | E88: 29.1 | F88: 4.12
A89: Solid biofuels | B89: Industry - iron and steel | C89: Solid biofuels#Industry - iron and steel | D89: 0 | E89: 29.1 | F89: 4.119999999
A90: Solid biofuels | B90: Industry - mineral materials | C90: Solid biofuels#Industry - mineral materials | D90: 0 | E90: 29.1 | F90: 4.12
A91: Solid biofuels | B91: Industry - nonferrous metalls | C91: Solid biofuels#Industry - nonferrous metalls | D91: 0 | E91: 29.1 | F91: 4.12
A92: Solid biofuels | B92: Industry - other | C92: Solid biofuels#Industry - other | D92: 0 | E92: 27.9108513 | F92: 3.950188043
A93: Solid biofuels | B93: Industry - paper, pulp, polygraphic industry | C93: Solid biofuels#Industry - paper, pulp, polygraphic industry | D93: 0 | E93: 19.11712854 | F93: 2.69443318

Sheet Saving_measures (hidden)
A1: Measure | B1: Cost type | C1: Measure detail | D1: Unit investments [€/GJ] | E1: Subsidy share [%] | F1: Annual Cost Saved [€/GJ.y] | G1: Investment costs [€] | H1: Subsidy [€] | I1: Payback period w/o subsidy [y] | J1: Energy saving potential [TJ] | K1: Lifetime [y] | L1: Energy carrier saved | M1: The most similar sector | N1: Drop of CO2 emissions [t] | O1: Drop of CH4 emissions[kg] | P1: Drop of N2O emissions [kg] | Q1: Drop of CO2eq emissions [t] | R1: EF of CO2 [kg/GJ] | S1: EF of CH4 [g/GJ] | T1: EF of N2O [g/GJ] | U1: EF of CO2 eq [kg/GJ] | V1: Unit investments [Kč/t CO2 eq]
A2: Buildings insulation | B2: MAX | C2: =Saving_measures[[#This Row],[Measure]] & "#" & Saving_measures[[#This Row],[Cost type]] -> Buildings insulation#MAX | D2: 390.8293501 | E2: =VLOOKUP(Saving_measures[[#This Row],[Measure detail]],Potential_of_measures!$C$1:$E$192,3,0) -> 0.875 | F2: =Saving_measures[[#This Row],[Unit investments '[€/GJ']]]/Saving_measures[[#This Row],[Payback period w/o subsidy '[y']]] -> 9.770733754 | G2: =Saving_measures[[#This Row],[Energy saving potential '[TJ']]]*Saving_measures[[#This Row],[Unit investments '[€/GJ']]]*1000 -> 846887897.1 | H2: =Saving_measures[[#This Row],[Subsidy share '[%']]]*Saving_measures[[#This Row],[Investment costs '[€']]] -> 741026909.9 | I2: 40 | J2: =VLOOKUP(Saving_measures[[#This Row],[Measure detail]],Potential_of_measures!$C$1:$E$192,2,0) -> 2166.899433 | K2: 25 | L2: Fuels and heat | M2: Industry | N2: =Saving_measures[[#This Row],[Energy saving potential '[TJ']]]*Saving_measures[[#This Row],[EF of CO2 '[kg/GJ']]] -> 160021.4709 | O2: =Saving_measures[[#This Row],[Energy saving potential '[TJ']]]*Saving_measures[[#This Row],[EF of CH4 '[g/GJ']]] -> 6344.373784 | P2: =Saving_measures[[#This Row],[Energy saving potential '[TJ']]]*Saving_measures[[#This Row],[EF of N2O '[g/GJ']]] -> 1261.058531 | Q2: =Saving_measures[[#This Row],[Energy saving potential '[TJ']]]*Saving_measures[[#This Row],[EF of CO2 eq '[kg/GJ']]] -> 160555.8757 | R2: =VLOOKUP(Saving_measures[[#This Row],[Energy carrier saved]] & "#" & Saving_measures[[#This Row],[The most similar sector]],Emiskoef,2,FALSE) -> 73.84812998 | S2: =VLOOKUP(Saving_measures[[#This Row],[Energy carrier saved]] & "#" & Saving_measures[[#This Row],[The most similar sector]],Emiskoef,3,FALSE) -> 2.927857975 | T2: =VLOOKUP(Saving_measures[[#This Row],[Energy carrier saved]] & "#" & Saving_measures[[#This Row],[The most similar sector]],Emiskoef,4,FALSE) -> 0.5819644937 | U2: =Saving_measures[[#This Row],[EF of CO2 '[kg/GJ']]]+0.025*Saving_measures[[#This Row],[EF of CH4 '[g/GJ']]]+0.298*Saving_measures[[#This Row],[EF of N2O '[g/GJ']]] -> 74.09475185 | V2: =1000*Saving_measures[[#This Row],[Unit investments '[€/GJ']]]/Saving_measures[[#This Row],[EF of CO2 eq '[kg/GJ']]] -> 5274.723788
A3: Buildings insulation | B3: MIN | C3: =Saving_measures[[#This Row],[Measure]] & "#" & Saving_measures[[#This Row],[Cost type]] -> Buildings insulation#MIN | D3: 174.6639571 | E3: =VLOOKUP(Saving_measures[[#This Row],[Measure detail]],Potential_of_measures!$C$1:$E$192,3,0) -> 0.5833333333 | F3: =Saving_measures[[#This Row],[Unit investments '[€/GJ']]]/Saving_measures[[#This Row],[Payback period w/o subsidy '[y']]] -> 14.55532976 | G3: =Saving_measures[[#This Row],[Energy saving potential '[TJ']]]*Saving_measures[[#This Row],[Unit investments '[€/GJ']]]*1000 -> 378479229.5 | H3: =Saving_measures[[#This Row],[Subsidy share '[%']]]*Saving_measures[[#This Row],[Investment costs '[€']]] -> 220779550.5 | I3: 12 | J3: =VLOOKUP(Saving_measures[[#This Row],[Measure detail]],Potential_of_measures!$C$1:$E$192,2,0) -> 2166.899433 | K3: 25 | L3: Fuels and heat | M3: Industry | N3: =Saving_measures[[#This Row],[Energy saving potential '[TJ']]]*Saving_measures[[#This Row],[EF of CO2 '[kg/GJ']]] -> 160021.4709 | O3: =Saving_measures[[#This Row],[Energy saving potential '[TJ']]]*Saving_measures[[#This Row],[EF of CH4 '[g/GJ']]] -> 6344.373784 | P3: =Saving_measures[[#This Row],[Energy saving potential '[TJ']]]*Saving_measures[[#This Row],[EF of N2O '[g/GJ']]] -> 1261.058531 | Q3: =Saving_measures[[#This Row],[Energy saving potential '[TJ']]]*Saving_measures[[#This Row],[EF of CO2 eq '[kg/GJ']]] -> 160555.8757 | R3: =VLOOKUP(Saving_measures[[#This Row],[Energy carrier saved]] & "#" & Saving_measures[[#This Row],[The most similar sector]],Emiskoef,2,FALSE) -> 73.84812998 | S3: =VLOOKUP(Saving_measures[[#This Row],[Energy carrier saved]] & "#" & Saving_measures[[#This Row],[The most similar sector]],Emiskoef,3,FALSE) -> 2.927857975 | T3: =VLOOKUP(Saving_measures[[#This Row],[Energy carrier saved]] & "#" & Saving_measures[[#This Row],[The most similar sector]],Emiskoef,4,FALSE) -> 0.5819644937 | U3: =Saving_measures[[#This Row],[EF of CO2 '[kg/GJ']]]+0.025*Saving_measures[[#This Row],[EF of CH4 '[g/GJ']]]+0.298*Saving_measures[[#This Row],[EF of N2O '[g/GJ']]] -> 74.09475185 | V3: =1000*Saving_measures[[#This Row],[Unit investments '[€/GJ']]]/Saving_measures[[#This Row],[EF of CO2 eq '[kg/GJ']]] -> 2357.305379
A4: Buildings insulation | B4: TYP | C4: =Saving_measures[[#This Row],[Measure]] & "#" & Saving_measures[[#This Row],[Cost type]] -> Buildings insulation#TYP | D4: 249.9168532 | E4: =VLOOKUP(Saving_measures[[#This Row],[Measure detail]],Potential_of_measures!$C$1:$E$192,3,0) -> 0.75 | F4: =Saving_measures[[#This Row],[Unit investments '[€/GJ']]]/Saving_measures[[#This Row],[Payback period w/o subsidy '[y']]] -> 12.49584266 | G4: =Saving_measures[[#This Row],[Energy saving potential '[TJ']]]*Saving_measures[[#This Row],[Unit investments '[€/GJ']]]*1000 -> 1083089375 | H4: =Saving_measures[[#This Row],[Subsidy share '[%']]]*Saving_measures[[#This Row],[Investment costs '[€']]] -> 812317031.2 | I4: 20 | J4: =VLOOKUP(Saving_measures[[#This Row],[Measure detail]],Potential_of_measures!$C$1:$E$192,2,0) -> 4333.798865 | K4: 25 | L4: Fuels and heat | M4: Industry | N4: =Saving_measures[[#This Row],[Energy saving potential '[TJ']]]*Saving_measures[[#This Row],[EF of CO2 '[kg/GJ']]] -> 320042.9419 | O4: =Saving_measures[[#This Row],[Energy saving potential '[TJ']]]*Saving_measures[[#This Row],[EF of CH4 '[g/GJ']]] -> 12688.74757 | P4: =Saving_measures[[#This Row],[Energy saving potential '[TJ']]]*Saving_measures[[#This Row],[EF of N2O '[g/GJ']]] -> 2522.117062 | Q4: =Saving_measures[[#This Row],[Energy saving potential '[TJ']]]*Saving_measures[[#This Row],[EF of CO2 eq '[kg/GJ']]] -> 321111.7515 | R4: =VLOOKUP(Saving_measures[[#This Row],[Energy carrier saved]] & "#" & Saving_measures[[#This Row],[The most similar sector]],Emiskoef,2,FALSE) -> 73.84812998 | S4: =VLOOKUP(Saving_measures[[#This Row],[Energy carrier saved]] & "#" & Saving_measures[[#This Row],[The most similar sector]],Emiskoef,3,FALSE) -> 2.927857975 | T4: =VLOOKUP(Saving_measures[[#This Row],[Energy carrier saved]] & "#" & Saving_measures[[#This Row],[The most similar sector]],Emiskoef,4,FALSE) -> 0.5819644937 | U4: =Saving_measures[[#This Row],[EF of CO2 '[kg/GJ']]]+0.025*Saving_measures[[#This Row],[EF of CH4 '[g/GJ']]]+0.298*Saving_measures[[#This Row],[EF of N2O '[g/GJ']]] -> 74.09475185 | V4: =1000*Saving_measures[[#This Row],[Unit investments '[€/GJ']]]/Saving_measures[[#This Row],[EF of CO2 eq '[kg/GJ']]] -> 3372.935964
A5: Contol of circulation pumps | B5: MAX | C5: =Saving_measures[[#This Row],[Measure]] & "#" & Saving_measures[[#This Row],[Cost type]] -> Contol of circulation pumps#MAX | D5: 78.43137255 | E5: =VLOOKUP(Saving_measures[[#This Row],[Measure detail]],Potential_of_measures!$C$1:$E$192,3,0) -> 0.2857142857 | F5: =Saving_measures[[#This Row],[Unit investments '[€/GJ']]]/Saving_measures[[#This Row],[Payback period w/o subsidy '[y']]] -> 11.20448179 | G5: =Saving_measures[[#This Row],[Energy saving potential '[TJ']]]*Saving_measures[[#This Row],[Unit investments '[€/GJ']]]*1000 -> 1232858.247 | H5: =Saving_measures[[#This Row],[Subsidy share '[%']]]*Saving_measures[[#This Row],[Investment costs '[€']]] -> 352245.2135 | I5: 7 | J5: =VLOOKUP(Saving_measures[[#This Row],[Measure detail]],Potential_of_measures!$C$1:$E$192,2,0) -> 15.71894265 | K5: 20 | L5: Electricity | M5: Industry | N5: =Saving_measures[[#This Row],[Energy saving potential '[TJ']]]*Saving_measures[[#This Row],[EF of CO2 '[kg/GJ']]] -> 4481.784929 | O5: =Saving_measures[[#This Row],[Energy saving potential '[TJ']]]*Saving_measures[[#This Row],[EF of CH4 '[g/GJ']]] -> 44.79898656 | P5: =Saving_measures[[#This Row],[Energy saving potential '[TJ']]]*Saving_measures[[#This Row],[EF of N2O '[g/GJ']]] -> 36.93951524 | Q5: =Saving_measures[[#This Row],[Energy saving potential '[TJ']]]*Saving_measures[[#This Row],[EF of CO2 eq '[kg/GJ']]] -> 4493.91288 | R5: =VLOOKUP(Saving_measures[[#This Row],[Energy carrier saved]] & "#" & Saving_measures[[#This Row],[The most similar sector]],Emiskoef,2,FALSE) -> 285.12 | S5: =VLOOKUP(Saving_measures[[#This Row],[Energy carrier saved]] & "#" & Saving_measures[[#This Row],[The most similar sector]],Emiskoef,3,FALSE) -> 2.85 | T5: =VLOOKUP(Saving_measures[[#This Row],[Energy carrier saved]] & "#" & Saving_measures[[#This Row],[The most similar sector]],Emiskoef,4,FALSE) -> 2.35 | U5: =Saving_measures[[#This Row],[EF of CO2 '[kg/GJ']]]+0.025*Saving_measures[[#This Row],[EF of CH4 '[g/GJ']]]+0.298*Saving_measures[[#This Row],[EF of N2O '[g/GJ']]] -> 285.89155 | V5: =1000*Saving_measures[[#This Row],[Unit investments '[€/GJ']]]/Saving_measures[[#This Row],[EF of CO2 eq '[kg/GJ']]] -> 274.3395968
A6: Contol of circulation pumps | B6: MIN | C6: =Saving_measures[[#This Row],[Measure]] & "#" & Saving_measures[[#This Row],[Cost type]] -> Contol of circulation pumps#MIN | D6: 36.07843137 | E6: =VLOOKUP(Saving_measures[[#This Row],[Measure detail]],Potential_of_measures!$C$1:$E$192,3,0) -> 0 | F6: =Saving_measures[[#This Row],[Unit investments '[€/GJ']]]/Saving_measures[[#This Row],[Payback period w/o subsidy '[y']]] -> 18.03921569 | G6: =Saving_measures[[#This Row],[Energy saving potential '[TJ']]]*Saving_measures[[#This Row],[Unit investments '[€/GJ']]]*1000 -> 567114.7938 | H6: =Saving_measures[[#This Row],[Subsidy share '[%']]]*Saving_measures[[#This Row],[Investment costs '[€']]] -> 0 | I6: 2 | J6: =VLOOKUP(Saving_measures[[#This Row],[Measure detail]],Potential_of_measures!$C$1:$E$192,2,0) -> 15.71894265 | K6: 20 | L6: Electricity | M6: Industry | N6: =Saving_measures[[#This Row],[Energy saving potential '[TJ']]]*Saving_measures[[#This Row],[EF of CO2 '[kg/GJ']]] -> 4481.784929 | O6: =Saving_measures[[#This Row],[Energy saving potential '[TJ']]]*Saving_measures[[#This Row],[EF of CH4 '[g/GJ']]] -> 44.79898656 | P6: =Saving_measures[[#This Row],[Energy saving potential '[TJ']]]*Saving_measures[[#This Row],[EF of N2O '[g/GJ']]] -> 36.93951524 | Q6: =Saving_measures[[#This Row],[Energy saving potential '[TJ']]]*Saving_measures[[#This Row],[EF of CO2 eq '[kg/GJ']]] -> 4493.91288 | R6: =VLOOKUP(Saving_measures[[#This Row],[Energy carrier saved]] & "#" & Saving_measures[[#This Row],[The most similar sector]],Emiskoef,2,FALSE) -> 285.12 | S6: =VLOOKUP(Saving_measures[[#This Row],[Energy carrier saved]] & "#" & Saving_measures[[#This Row],[The most similar sector]],Emiskoef,3,FALSE) -> 2.85 | T6: =VLOOKUP(Saving_measures[[#This Row],[Energy carrier saved]] & "#" & Saving_measures[[#This Row],[The most similar sector]],Emiskoef,4,FALSE) -> 2.35 | U6: =Saving_measures[[#This Row],[EF of CO2 '[kg/GJ']]]+0.025*Saving_measures[[#This Row],[EF of CH4 '[g/GJ']]]+0.298*Saving_measures[[#This Row],[EF of N2O '[g/GJ']]] -> 285.89155 | V6: =1000*Saving_measures[[#This Row],[Unit investments '[€/GJ']]]/Saving_measures[[#This Row],[EF of CO2 eq '[kg/GJ']]] -> 126.1962145
A7: Contol of circulation pumps | B7: TYP | C7: =Saving_measures[[#This Row],[Measure]] & "#" & Saving_measures[[#This Row],[Cost type]] -> Contol of circulation pumps#TYP | D7: 54.90196078 | E7: =VLOOKUP(Saving_measures[[#This Row],[Measure detail]],Potential_of_measures!$C$1:$E$192,3,0) -> 0 | F7: =Saving_measures[[#This Row],[Unit investments '[€/GJ']]]/Saving_measures[[#This Row],[Payback period w/o subsidy '[y']]] -> 13.7254902 | G7: =Saving_measures[[#This Row],[Energy saving potential '[TJ']]]*Saving_measures[[#This Row],[Unit investments '[€/GJ']]]*1000 -> 1726001.546 | H7: =Saving_measures[[#This Row],[Subsidy share '[%']]]*Saving_measures[[#This Row],[Investment costs '[€']]] -> 0 | I7: 4 | J7: =VLOOKUP(Saving_measures[[#This Row],[Measure detail]],Potential_of_measures!$C$1:$E$192,2,0) -> 31.43788531 | K7: 20 | L7: Electricity | M7: Industry | N7: =Saving_measures[[#This Row],[Energy saving potential '[TJ']]]*Saving_measures[[#This Row],[EF of CO2 '[kg/GJ']]] -> 8963.569859 | O7: =Saving_measures[[#This Row],[Energy saving potential '[TJ']]]*Saving_measures[[#This Row],[EF of CH4 '[g/GJ']]] -> 89.59797313 | P7: =Saving_measures[[#This Row],[Energy saving potential '[TJ']]]*Saving_measures[[#This Row],[EF of N2O '[g/GJ']]] -> 73.87903047 | Q7: =Saving_measures[[#This Row],[Energy saving potential '[TJ']]]*Saving_measures[[#This Row],[EF of CO2 eq '[kg/GJ']]] -> 8987.825759 | R7: =VLOOKUP(Saving_measures[[#This Row],[Energy carrier saved]] & "#" & Saving_measures[[#This Row],[The most similar sector]],Emiskoef,2,FALSE) -> 285.12 | S7: =VLOOKUP(Saving_measures[[#This Row],[Energy carrier saved]] & "#" & Saving_measures[[#This Row],[The most similar sector]],Emiskoef,3,FALSE) -> 2.85 | T7: =VLOOKUP(Saving_measures[[#This Row],[Energy carrier saved]] & "#" & Saving_measures[[#This Row],[The most similar sector]],Emiskoef,4,FALSE) -> 2.35 | U7: =Saving_measures[[#This Row],[EF of CO2 '[kg/GJ']]]+0.025*Saving_measures[[#This Row],[EF of CH4 '[g/GJ']]]+0.298*Saving_measures[[#This Row],[EF of N2O '[g/GJ']]] -> 285.89155 | V7: =1000*Saving_measures[[#This Row],[Unit investments '[€/GJ']]]/Saving_measures[[#This Row],[EF of CO2 eq '[kg/GJ']]] -> 192.0377177
A8: Decrease of losses in heat distribution | B8: MAX | C8: =Saving_measures[[#This Row],[Measure]] & "#" & Saving_measures[[#This Row],[Cost type]] -> Decrease of losses in heat distribution#MAX | D8: 784.3137255 | E8: =VLOOKUP(Saving_measures[[#This Row],[Measure detail]],Potential_of_measures!$C$1:$E$192,3,0) -> 0.9166666667 | F8: =Saving_measures[[#This Row],[Unit investments '[€/GJ']]]/Saving_measures[[#This Row],[Payback period w/o subsidy '[y']]] -> 13.07189542 | G8: =Saving_measures[[#This Row],[Energy saving potential '[TJ']]]*Saving_measures[[#This Row],[Unit investments '[€/GJ']]]*1000 -> 238970795.6 | H8: =Saving_measures[[#This Row],[Subsidy share '[%']]]*Saving_measures[[#This Row],[Investment costs '[€']]] -> 219056562.6 | I8: 60 | J8: =VLOOKUP(Saving_measures[[#This Row],[Measure detail]],Potential_of_measures!$C$1:$E$192,2,0) -> 304.6877644 | K8: 30 | L8: Heat | M8: Industry | N8: =Saving_measures[[#This Row],[Energy saving potential '[TJ']]]*Saving_measures[[#This Row],[EF of CO2 '[kg/GJ']]] -> 28464.96462 | O8: =Saving_measures[[#This Row],[Energy saving potential '[TJ']]]*Saving_measures[[#This Row],[EF of CH4 '[g/GJ']]] -> 415.0209981 | P8: =Saving_measures[[#This Row],[Energy saving potential '[TJ']]]*Saving_measures[[#This Row],[EF of N2O '[g/GJ']]] -> 432.4239743 | Q8: =Saving_measures[[#This Row],[Energy saving potential '[TJ']]]*Saving_measures[[#This Row],[EF of CO2 eq '[kg/GJ']]] -> 28604.20249 | R8: =VLOOKUP(Saving_measures[[#This Row],[Energy carrier saved]] & "#" & Saving_measures[[#This Row],[The most similar sector]],Emiskoef,2,FALSE) -> 93.42339256 | S8: =VLOOKUP(Saving_measures[[#This Row],[Energy carrier saved]] & "#" & Saving_measures[[#This Row],[The most similar sector]],Emiskoef,3,FALSE) -> 1.362119017 | T8: =VLOOKUP(Saving_measures[[#This Row],[Energy carrier saved]] & "#" & Saving_measures[[#This Row],[The most similar sector]],Emiskoef,4,FALSE) -> 1.419236428 | U8: =Saving_measures[[#This Row],[EF of CO2 '[kg/GJ']]]+0.025*Saving_measures[[#This Row],[EF of CH4 '[g/GJ']]]+0.298*Saving_measures[[#This Row],[EF of N2O '[g/GJ']]] -> 93.88037799 | V8: =1000*Saving_measures[[#This Row],[Unit investments '[€/GJ']]]/Saving_measures[[#This Row],[EF of CO2 eq '[kg/GJ']]] -> 8354.394627
A9: Decrease of losses in heat distribution | B9: MIN | C9: =Saving_measures[[#This Row],[Measure]] & "#" & Saving_measures[[#This Row],[Cost type]] -> Decrease of losses in heat distribution#MIN | D9: 117.6470588 | E9: =VLOOKUP(Saving_measures[[#This Row],[Measure detail]],Potential_of_measures!$C$1:$E$192,3,0) -> 0.6666666667 | F9: =Saving_measures[[#This Row],[Unit investments '[€/GJ']]]/Saving_measures[[#This Row],[Payback period w/o subsidy '[y']]] -> 7.843137255 | G9: =Saving_measures[[#This Row],[Energy saving potential '[TJ']]]*Saving_measures[[#This Row],[Unit investments '[€/GJ']]]*1000 -> 35845619.34 | H9: =Saving_measures[[#This Row],[Subsidy share '[%']]]*Saving_measures[[#This Row],[Investment costs '[€']]] -> 23897079.56 | I9: 15 | J9: =VLOOKUP(Saving_measures[[#This Row],[Measure detail]],Potential_of_measures!$C$1:$E$192,2,0) -> 304.6877644 | K9: 30 | L9: Heat | M9: Industry | N9: =Saving_measures[[#This Row],[Energy saving potential '[TJ']]]*Saving_measures[[#This Row],[EF of CO2 '[kg/GJ']]] -> 28464.96462 | O9: =Saving_measures[[#This Row],[Energy saving potential '[TJ']]]*Saving_measures[[#This Row],[EF of CH4 '[g/GJ']]] -> 415.0209981 | P9: =Saving_measures[[#This Row],[Energy saving potential '[TJ']]]*Saving_measures[[#This Row],[EF of N2O '[g/GJ']]] -> 432.4239743 | Q9: =Saving_measures[[#This Row],[Energy saving potential '[TJ']]]*Saving_measures[[#This Row],[EF of CO2 eq '[kg/GJ']]] -> 28604.20249 | R9: =VLOOKUP(Saving_measures[[#This Row],[Energy carrier saved]] & "#" & Saving_measures[[#This Row],[The most similar sector]],Emiskoef,2,FALSE) -> 93.42339256 | S9: =VLOOKUP(Saving_measures[[#This Row],[Energy carrier saved]] & "#" & Saving_measures[[#This Row],[The most similar sector]],Emiskoef,3,FALSE) -> 1.362119017 | T9: =VLOOKUP(Saving_measures[[#This Row],[Energy carrier saved]] & "#" & Saving_measures[[#This Row],[The most similar sector]],Emiskoef,4,FALSE) -> 1.419236428 | U9: =Saving_measures[[#This Row],[EF of CO2 '[kg/GJ']]]+0.025*Saving_measures[[#This Row],[EF of CH4 '[g/GJ']]]+0.298*Saving_measures[[#This Row],[EF of N2O '[g/GJ']]] -> 93.88037799 | V9: =1000*Saving_measures[[#This Row],[Unit investments '[€/GJ']]]/Saving_measures[[#This Row],[EF of CO2 eq '[kg/GJ']]] -> 1253.159194
A10: Decrease of losses in heat distribution | B10: TYP | C10: =Saving_measures[[#This Row],[Measure]] & "#" & Saving_measures[[#This Row],[Cost type]] -> Decrease of losses in heat distribution#TYP | D10: 588.2352941 | E10: =VLOOKUP(Saving_measures[[#This Row],[Measure detail]],Potential_of_measures!$C$1:$E$192,3,0) -> 0.8888888889 | F10: =Saving_measures[[#This Row],[Unit investments '[€/GJ']]]/Saving_measures[[#This Row],[Payback period w/o subsidy '[y']]] -> 13.07189542 | G10: =Saving_measures[[#This Row],[Energy saving potential '[TJ']]]*Saving_measures[[#This Row],[Unit investments '[€/GJ']]]*1000 -> 537684290 | H10: =Saving_measures[[#This Row],[Subsidy share '[%']]]*Saving_measures[[#This Row],[Investment costs '[€']]] -> 477941591.2 | I10: 45 | J10: =VLOOKUP(Saving_measures[[#This Row],[Measure detail]],Potential_of_measures!$C$1:$E$192,2,0) -> 914.0632931 | K10: 30 | L10: Heat | M10: Industry | N10: =Saving_measures[[#This Row],[Energy saving potential '[TJ']]]*Saving_measures[[#This Row],[EF of CO2 '[kg/GJ']]] -> 85394.89385 | O10: =Saving_measures[[#This Row],[Energy saving potential '[TJ']]]*Saving_measures[[#This Row],[EF of CH4 '[g/GJ']]] -> 1245.062994 | P10: =Saving_measures[[#This Row],[Energy saving potential '[TJ']]]*Saving_measures[[#This Row],[EF of N2O '[g/GJ']]] -> 1297.271923 | Q10: =Saving_measures[[#This Row],[Energy saving potential '[TJ']]]*Saving_measures[[#This Row],[EF of CO2 eq '[kg/GJ']]] -> 85812.60746 | R10: =VLOOKUP(Saving_measures[[#This Row],[Energy carrier saved]] & "#" & Saving_measures[[#This Row],[The most similar sector]],Emiskoef,2,FALSE) -> 93.42339256 | S10: =VLOOKUP(Saving_measures[[#This Row],[Energy carrier saved]] & "#" & Saving_measures[[#This Row],[The most similar sector]],Emiskoef,3,FALSE) -> 1.362119017 | T10: =VLOOKUP(Saving_measures[[#This Row],[Energy carrier saved]] & "#" & Saving_measures[[#This Row],[The most similar sector]],Emiskoef,4,FALSE) -> 1.419236428 | U10: =Saving_measures[[#This Row],[EF of CO2 '[kg/GJ']]]+0.025*Saving_measures[[#This Row],[EF of CH4 '[g/GJ']]]+0.298*Saving_measures[[#This Row],[EF of N2O '[g/GJ']]] -> 93.88037799 | V10: =1000*Saving_measures[[#This Row],[Unit investments '[€/GJ']]]/Saving_measures[[#This Row],[EF of CO2 eq '[kg/GJ']]] -> 6265.795971
A11: Energy management | B11: MAX | C11: =Saving_measures[[#This Row],[Measure]] & "#" & Saving_measures[[#This Row],[Cost type]] -> Energy management#MAX | D11: 78.16587003 | E11: =VLOOKUP(Saving_measures[[#This Row],[Measure detail]],Potential_of_measures!$C$1:$E$192,3,0) -> 0.375 | F11: =Saving_measures[[#This Row],[Unit investments '[€/GJ']]]/Saving_measures[[#This Row],[Payback period w/o subsidy '[y']]] -> 9.770733754 | G11: =Saving_measures[[#This Row],[Energy saving potential '[TJ']]]*Saving_measures[[#This Row],[Unit investments '[€/GJ']]]*1000 -> 34083738.09 | H11: =Saving_measures[[#This Row],[Subsidy share '[%']]]*Saving_measures[[#This Row],[Investment costs '[€']]] -> 12781401.78 | I11: 8 | J11: =VLOOKUP(Saving_measures[[#This Row],[Measure detail]],Potential_of_measures!$C$1:$E$192,2,0) -> 436.0437372 | K11: 10 | L11: All energy carriers | M11: Industry | N11: =Saving_measures[[#This Row],[Energy saving potential '[TJ']]]*Saving_measures[[#This Row],[EF of CO2 '[kg/GJ']]] -> 40203.23257 | O11: =Saving_measures[[#This Row],[Energy saving potential '[TJ']]]*Saving_measures[[#This Row],[EF of CH4 '[g/GJ']]] -> 2956.376538 | P11: =Saving_measures[[#This Row],[Energy saving potential '[TJ']]]*Saving_measures[[#This Row],[EF of N2O '[g/GJ']]] -> 431.6832999 | Q11: =Saving_measures[[#This Row],[Energy saving potential '[TJ']]]*Saving_measures[[#This Row],[EF of CO2 eq '[kg/GJ']]] -> 40405.78361 | R11: =VLOOKUP(Saving_measures[[#This Row],[Energy carrier saved]] & "#" & Saving_measures[[#This Row],[The most similar sector]],Emiskoef,2,FALSE) -> 92.2 | S11: =VLOOKUP(Saving_measures[[#This Row],[Energy carrier saved]] & "#" & Saving_measures[[#This Row],[The most similar sector]],Emiskoef,3,FALSE) -> 6.78 | T11: =VLOOKUP(Saving_measures[[#This Row],[Energy carrier saved]] & "#" & Saving_measures[[#This Row],[The most similar sector]],Emiskoef,4,FALSE) -> 0.99 | U11: =Saving_measures[[#This Row],[EF of CO2 '[kg/GJ']]]+0.025*Saving_measures[[#This Row],[EF of CH4 '[g/GJ']]]+0.298*Saving_measures[[#This Row],[EF of N2O '[g/GJ']]] -> 92.66452 | V11: =1000*Saving_measures[[#This Row],[Unit investments '[€/GJ']]]/Saving_measures[[#This Row],[EF of CO2 eq '[kg/GJ']]] -> 843.536124
A12: Energy management | B12: MIN | C12: =Saving_measures[[#This Row],[Measure]] & "#" & Saving_measures[[#This Row],[Cost type]] -> Energy management#MIN | D12: 34.93279141 | E12: =VLOOKUP(Saving_measures[[#This Row],[Measure detail]],Potential_of_measures!$C$1:$E$192,3,0) -> 0 | F12: =Saving_measures[[#This Row],[Unit investments '[€/GJ']]]/Saving_measures[[#This Row],[Payback period w/o subsidy '[y']]] -> 23.28852761 | G12: =Saving_measures[[#This Row],[Energy saving potential '[TJ']]]*Saving_measures[[#This Row],[Unit investments '[€/GJ']]]*1000 -> 1692469.435 | H12: =Saving_measures[[#This Row],[Subsidy share '[%']]]*Saving_measures[[#This Row],[Investment costs '[€']]] -> 0 | I12: 1.5 | J12: =VLOOKUP(Saving_measures[[#This Row],[Measure detail]],Potential_of_measures!$C$1:$E$192,2,0) -> 48.44930414 | K12: 10 | L12: All energy carriers | M12: Industry | N12: =Saving_measures[[#This Row],[Energy saving potential '[TJ']]]*Saving_measures[[#This Row],[EF of CO2 '[kg/GJ']]] -> 4467.025841 | O12: =Saving_measures[[#This Row],[Energy saving potential '[TJ']]]*Saving_measures[[#This Row],[EF of CH4 '[g/GJ']]] -> 328.486282 | P12: =Saving_measures[[#This Row],[Energy saving potential '[TJ']]]*Saving_measures[[#This Row],[EF of N2O '[g/GJ']]] -> 47.96481109 | Q12: =Saving_measures[[#This Row],[Energy saving potential '[TJ']]]*Saving_measures[[#This Row],[EF of CO2 eq '[kg/GJ']]] -> 4489.531512 | R12: =VLOOKUP(Saving_measures[[#This Row],[Energy carrier saved]] & "#" & Saving_measures[[#This Row],[The most similar sector]],Emiskoef,2,FALSE) -> 92.2 | S12: =VLOOKUP(Saving_measures[[#This Row],[Energy carrier saved]] & "#" & Saving_measures[[#This Row],[The most similar sector]],Emiskoef,3,FALSE) -> 6.78 | T12: =VLOOKUP(Saving_measures[[#This Row],[Energy carrier saved]] & "#" & Saving_measures[[#This Row],[The most similar sector]],Emiskoef,4,FALSE) -> 0.99 | U12: =Saving_measures[[#This Row],[EF of CO2 '[kg/GJ']]]+0.025*Saving_measures[[#This Row],[EF of CH4 '[g/GJ']]]+0.298*Saving_measures[[#This Row],[EF of N2O '[g/GJ']]] -> 92.66452 | V12: =1000*Saving_measures[[#This Row],[Unit investments '[€/GJ']]]/Saving_measures[[#This Row],[EF of CO2 eq '[kg/GJ']]] -> 376.9813021
A13: Energy management | B13: TYP | C13: =Saving_measures[[#This Row],[Measure]] & "#" & Saving_measures[[#This Row],[Cost type]] -> Energy management#TYP | D13: 49.98337065 | E13: =VLOOKUP(Saving_measures[[#This Row],[Measure detail]],Potential_of_measures!$C$1:$E$192,3,0) -> 0 | F13: =Saving_measures[[#This Row],[Unit investments '[€/GJ']]]/Saving_measures[[#This Row],[Payback period w/o subsidy '[y']]] -> 12.49584266 | G13: =Saving_measures[[#This Row],[Energy saving potential '[TJ']]]*Saving_measures[[#This Row],[Unit investments '[€/GJ']]]*1000 -> 24216595.26 | H13: =Saving_measures[[#This Row],[Subsidy share '[%']]]*Saving_measures[[#This Row],[Investment costs '[€']]] -> 0 | I13: 4 | J13: =VLOOKUP(Saving_measures[[#This Row],[Measure detail]],Potential_of_measures!$C$1:$E$192,2,0) -> 484.4930414 | K13: 10 | L13: All energy carriers | M13: Industry | N13: =Saving_measures[[#This Row],[Energy saving potential '[TJ']]]*Saving_measures[[#This Row],[EF of CO2 '[kg/GJ']]] -> 44670.25841 | O13: =Saving_measures[[#This Row],[Energy saving potential '[TJ']]]*Saving_measures[[#This Row],[EF of CH4 '[g/GJ']]] -> 3284.86282 | P13: =Saving_measures[[#This Row],[Energy saving potential '[TJ']]]*Saving_measures[[#This Row],[EF of N2O '[g/GJ']]] -> 479.6481109 | Q13: =Saving_measures[[#This Row],[Energy saving potential '[TJ']]]*Saving_measures[[#This Row],[EF of CO2 eq '[kg/GJ']]] -> 44895.31512 | R13: =VLOOKUP(Saving_measures[[#This Row],[Energy carrier saved]] & "#" & Saving_measures[[#This Row],[The most similar sector]],Emiskoef,2,FALSE) -> 92.2 | S13: =VLOOKUP(Saving_measures[[#This Row],[Energy carrier saved]] & "#" & Saving_measures[[#This Row],[The most similar sector]],Emiskoef,3,FALSE) -> 6.78 | T13: =VLOOKUP(Saving_measures[[#This Row],[Energy carrier saved]] & "#" & Saving_measures[[#This Row],[The most similar sector]],Emiskoef,4,FALSE) -> 0.99 | U13: =Saving_measures[[#This Row],[EF of CO2 '[kg/GJ']]]+0.025*Saving_measures[[#This Row],[EF of CH4 '[g/GJ']]]+0.298*Saving_measures[[#This Row],[EF of N2O '[g/GJ']]] -> 92.66452 | V13: =1000*Saving_measures[[#This Row],[Unit investments '[€/GJ']]]/Saving_measures[[#This Row],[EF of CO2 eq '[kg/GJ']]] -> 539.4013873
A14: Change of technological processes | B14: MAX | C14: =Saving_measures[[#This Row],[Measure]] & "#" & Saving_measures[[#This Row],[Cost type]] -> Change of technological processes#MAX | D14: 168.4098619 | E14: =VLOOKUP(Saving_measures[[#This Row],[Measure detail]],Potential_of_measures!$C$1:$E$192,3,0) -> 0.8333333333 | F14: =Saving_measures[[#This Row],[Unit investments '[€/GJ']]]/Saving_measures[[#This Row],[Payback period w/o subsidy '[y']]] -> 5.613662063 | G14: =Saving_measures[[#This Row],[Energy saving potential '[TJ']]]*Saving_measures[[#This Row],[Unit investments '[€/GJ']]]*1000 -> 202307430.8 | H14: =Saving_measures[[#This Row],[Subsidy share '[%']]]*Saving_measures[[#This Row],[Investment costs '[€']]] -> 168589525.7 | I14: 30 | J14: =VLOOKUP(Saving_measures[[#This Row],[Measure detail]],Potential_of_measures!$C$1:$E$192,2,0) -> 1201.280189 | K14: 30 | L14: All energy carriers | M14: Industry | N14: =Saving_measures[[#This Row],[Energy saving potential '[TJ']]]*Saving_measures[[#This Row],[EF of CO2 '[kg/GJ']]] -> 110758.0335 | O14: =Saving_measures[[#This Row],[Energy saving potential '[TJ']]]*Saving_measures[[#This Row],[EF of CH4 '[g/GJ']]] -> 8144.679684 | P14: =Saving_measures[[#This Row],[Energy saving potential '[TJ']]]*Saving_measures[[#This Row],[EF of N2O '[g/GJ']]] -> 1189.267387 | Q14: =Saving_measures[[#This Row],[Energy saving potential '[TJ']]]*Saving_measures[[#This Row],[EF of CO2 eq '[kg/GJ']]] -> 111316.0521 | R14: =VLOOKUP(Saving_measures[[#This Row],[Energy carrier saved]] & "#" & Saving_measures[[#This Row],[The most similar sector]],Emiskoef,2,FALSE) -> 92.2 | S14: =VLOOKUP(Saving_measures[[#This Row],[Energy carrier saved]] & "#" & Saving_measures[[#This Row],[The most similar sector]],Emiskoef,3,FALSE) -> 6.78 | T14: =VLOOKUP(Saving_measures[[#This Row],[Energy carrier saved]] & "#" & Saving_measures[[#This Row],[The most similar sector]],Emiskoef,4,FALSE) -> 0.99 | U14: =Saving_measures[[#This Row],[EF of CO2 '[kg/GJ']]]+0.025*Saving_measures[[#This Row],[EF of CH4 '[g/GJ']]]+0.298*Saving_measures[[#This Row],[EF of N2O '[g/GJ']]] -> 92.66452 | V14: =1000*Saving_measures[[#This Row],[Unit investments '[€/GJ']]]/Saving_measures[[#This Row],[EF of CO2 eq '[kg/GJ']]] -> 1817.414712
A15: Change of technological processes | B15: MIN | C15: =Saving_measures[[#This Row],[Measure]] & "#" & Saving_measures[[#This Row],[Cost type]] -> Change of technological processes#MIN | D15: 57.7980533 | E15: =VLOOKUP(Saving_measures[[#This Row],[Measure detail]],Potential_of_measures!$C$1:$E$192,3,0) -> 0 | F15: =Saving_measures[[#This Row],[Unit investments '[€/GJ']]]/Saving_measures[[#This Row],[Payback period w/o subsidy '[y']]] -> 11.55961066 | G15: =Saving_measures[[#This Row],[Energy saving potential '[TJ']]]*Saving_measures[[#This Row],[Unit investments '[€/GJ']]]*1000 -> 9918808.058 | H15: =Saving_measures[[#This Row],[Subsidy share '[%']]]*Saving_measures[[#This Row],[Investment costs '[€']]] -> 0 | I15: 5 | J15: =VLOOKUP(Saving_measures[[#This Row],[Measure detail]],Potential_of_measures!$C$1:$E$192,2,0) -> 171.6114556 | K15: 30 | L15: All energy carriers | M15: Industry | N15: =Saving_measures[[#This Row],[Energy saving potential '[TJ']]]*Saving_measures[[#This Row],[EF of CO2 '[kg/GJ']]] -> 15822.57621 | O15: =Saving_measures[[#This Row],[Energy saving potential '[TJ']]]*Saving_measures[[#This Row],[EF of CH4 '[g/GJ']]] -> 1163.525669 | P15: =Saving_measures[[#This Row],[Energy saving potential '[TJ']]]*Saving_measures[[#This Row],[EF of N2O '[g/GJ']]] -> 169.8953411 | Q15: =Saving_measures[[#This Row],[Energy saving potential '[TJ']]]*Saving_measures[[#This Row],[EF of CO2 eq '[kg/GJ']]] -> 15902.29316 | R15: =VLOOKUP(Saving_measures[[#This Row],[Energy carrier saved]] & "#" & Saving_measures[[#This Row],[The most similar sector]],Emiskoef,2,FALSE) -> 92.2 | S15: =VLOOKUP(Saving_measures[[#This Row],[Energy carrier saved]] & "#" & Saving_measures[[#This Row],[The most similar sector]],Emiskoef,3,FALSE) -> 6.78 | T15: =VLOOKUP(Saving_measures[[#This Row],[Energy carrier saved]] & "#" & Saving_measures[[#This Row],[The most similar sector]],Emiskoef,4,FALSE) -> 0.99 | U15: =Saving_measures[[#This Row],[EF of CO2 '[kg/GJ']]]+0.025*Saving_measures[[#This Row],[EF of CH4 '[g/GJ']]]+0.298*Saving_measures[[#This Row],[EF of N2O '[g/GJ']]] -> 92.66452 | V15: =1000*Saving_measures[[#This Row],[Unit investments '[€/GJ']]]/Saving_measures[[#This Row],[EF of CO2 eq '[kg/GJ']]] -> 623.7344487
A16: Change of technological processes | B16: TYP | C16: =Saving_measures[[#This Row],[Measure]] & "#" & Saving_measures[[#This Row],[Cost type]] -> Change of technological processes#TYP | D16: 89.11969146 | E16: =VLOOKUP(Saving_measures[[#This Row],[Measure detail]],Potential_of_measures!$C$1:$E$192,3,0) -> 0.375 | F16: =Saving_measures[[#This Row],[Unit investments '[€/GJ']]]/Saving_measures[[#This Row],[Payback period w/o subsidy '[y']]] -> 11.13996143 | G16: =Saving_measures[[#This Row],[Energy saving potential '[TJ']]]*Saving_measures[[#This Row],[Unit investments '[€/GJ']]]*1000 -> 183527519.7 | H16: =Saving_measures[[#This Row],[Subsidy share '[%']]]*Saving_measures[[#This Row],[Investment costs '[€']]] -> 68822819.89 | I16: 8 | J16: =VLOOKUP(Saving_measures[[#This Row],[Measure detail]],Potential_of_measures!$C$1:$E$192,2,0) -> 2059.337467 | K16: 30 | L16: All energy carriers | M16: Industry | N16: =Saving_measures[[#This Row],[Energy saving potential '[TJ']]]*Saving_measures[[#This Row],[EF of CO2 '[kg/GJ']]] -> 189870.9145 | O16: =Saving_measures[[#This Row],[Energy saving potential '[TJ']]]*Saving_measures[[#This Row],[EF of CH4 '[g/GJ']]] -> 13962.30803 | P16: =Saving_measures[[#This Row],[Energy saving potential '[TJ']]]*Saving_measures[[#This Row],[EF of N2O '[g/GJ']]] -> 2038.744093 | Q16: =Saving_measures[[#This Row],[Energy saving potential '[TJ']]]*Saving_measures[[#This Row],[EF of CO2 eq '[kg/GJ']]] -> 190827.5179 | R16: =VLOOKUP(Saving_measures[[#This Row],[Energy carrier saved]] & "#" & Saving_measures[[#This Row],[The most similar sector]],Emiskoef,2,FALSE) -> 92.2 | S16: =VLOOKUP(Saving_measures[[#This Row],[Energy carrier saved]] & "#" & Saving_measures[[#This Row],[The most similar sector]],Emiskoef,3,FALSE) -> 6.78 | T16: =VLOOKUP(Saving_measures[[#This Row],[Energy carrier saved]] & "#" & Saving_measures[[#This Row],[The most similar sector]],Emiskoef,4,FALSE) -> 0.99 | U16: =Saving_measures[[#This Row],[EF of CO2 '[kg/GJ']]]+0.025*Saving_measures[[#This Row],[EF of CH4 '[g/GJ']]]+0.298*Saving_measures[[#This Row],[EF of N2O '[g/GJ']]] -> 92.66452 | V16: =1000*Saving_measures[[#This Row],[Unit investments '[€/GJ']]]/Saving_measures[[#This Row],[EF of CO2 eq '[kg/GJ']]] -> 961.7455684
A17: Installation flue gas pre-heaters to boilers | B17: MAX | C17: =Saving_measures[[#This Row],[Measure]] & "#" & Saving_measures[[#This Row],[Cost type]] -> Installation flue gas pre-heaters to boilers#MAX | D17: 15.41575953 | E17: =VLOOKUP(Saving_measures[[#This Row],[Measure detail]],Potential_of_measures!$C$1:$E$192,3,0) -> 0 | F17: =Saving_measures[[#This Row],[Unit investments '[€/GJ']]]/Saving_measures[[#This Row],[Payback period w/o subsidy '[y']]] -> 5.138586512 | G17: =Saving_measures[[#This Row],[Energy saving potential '[TJ']]]*Saving_measures[[#This Row],[Unit investments '[€/GJ']]]*1000 -> 4605140.971 | H17: =Saving_measures[[#This Row],[Subsidy share '[%']]]*Saving_measures[[#This Row],[Investment costs '[€']]] -> 0 | I17: 3 | J17: =VLOOKUP(Saving_measures[[#This Row],[Measure detail]],Potential_of_measures!$C$1:$E$192,2,0) -> 298.7294243 | K17: 20 | L17: Fuels and heat | M17: Industry | N17: =Saving_measures[[#This Row],[Energy saving potential '[TJ']]]*Saving_measures[[#This Row],[EF of CO2 '[kg/GJ']]] -> 22060.60935 | O17: =Saving_measures[[#This Row],[Energy saving potential '[TJ']]]*Saving_measures[[#This Row],[EF of CH4 '[g/GJ']]] -> 874.6373273 | P17: =Saving_measures[[#This Row],[Energy saving potential '[TJ']]]*Saving_measures[[#This Row],[EF of N2O '[g/GJ']]] -> 173.8499182 | Q17: =Saving_measures[[#This Row],[Energy saving potential '[TJ']]]*Saving_measures[[#This Row],[EF of CO2 eq '[kg/GJ']]] -> 22134.28256 | R17: =VLOOKUP(Saving_measures[[#This Row],[Energy carrier saved]] & "#" & Saving_measures[[#This Row],[The most similar sector]],Emiskoef,2,FALSE) -> 73.84812998 | S17: =VLOOKUP(Saving_measures[[#This Row],[Energy carrier saved]] & "#" & Saving_measures[[#This Row],[The most similar sector]],Emiskoef,3,FALSE) -> 2.927857975 | T17: =VLOOKUP(Saving_measures[[#This Row],[Energy carrier saved]] & "#" & Saving_measures[[#This Row],[The most similar sector]],Emiskoef,4,FALSE) -> 0.5819644937 | U17: =Saving_measures[[#This Row],[EF of CO2 '[kg/GJ']]]+0.025*Saving_measures[[#This Row],[EF of CH4 '[g/GJ']]]+0.298*Saving_measures[[#This Row],[EF of N2O '[g/GJ']]] -> 74.09475185 | V17: =1000*Saving_measures[[#This Row],[Unit investments '[€/GJ']]]/Saving_measures[[#This Row],[EF of CO2 eq '[kg/GJ']]] -> 208.0546753
A18: Installation flue gas pre-heaters to boilers | B18: MIN | C18: =Saving_measures[[#This Row],[Measure]] & "#" & Saving_measures[[#This Row],[Cost type]] -> Installation flue gas pre-heaters to boilers#MIN | D18: 8.452769269 | E18: =VLOOKUP(Saving_measures[[#This Row],[Measure detail]],Potential_of_measures!$C$1:$E$192,3,0) -> 0 | F18: =Saving_measures[[#This Row],[Unit investments '[€/GJ']]]/Saving_measures[[#This Row],[Payback period w/o subsidy '[y']]] -> 16.90553854 | G18: =Saving_measures[[#This Row],[Energy saving potential '[TJ']]]*Saving_measures[[#This Row],[Unit investments '[€/GJ']]]*1000 -> 1262545.449 | H18: =Saving_measures[[#This Row],[Subsidy share '[%']]]*Saving_measures[[#This Row],[Investment costs '[€']]] -> 0 | I18: 0.5 | J18: =VLOOKUP(Saving_measures[[#This Row],[Measure detail]],Potential_of_measures!$C$1:$E$192,2,0) -> 149.3647122 | K18: 20 | L18: Fuels and heat | M18: Industry | N18: =Saving_measures[[#This Row],[Energy saving potential '[TJ']]]*Saving_measures[[#This Row],[EF of CO2 '[kg/GJ']]] -> 11030.30468 | O18: =Saving_measures[[#This Row],[Energy saving potential '[TJ']]]*Saving_measures[[#This Row],[EF of CH4 '[g/GJ']]] -> 437.3186636 | P18: =Saving_measures[[#This Row],[Energy saving potential '[TJ']]]*Saving_measures[[#This Row],[EF of N2O '[g/GJ']]] -> 86.92495908 | Q18: =Saving_measures[[#This Row],[Energy saving potential '[TJ']]]*Saving_measures[[#This Row],[EF of CO2 eq '[kg/GJ']]] -> 11067.14128 | R18: =VLOOKUP(Saving_measures[[#This Row],[Energy carrier saved]] & "#" & Saving_measures[[#This Row],[The most similar sector]],Emiskoef,2,FALSE) -> 73.84812998 | S18: =VLOOKUP(Saving_measures[[#This Row],[Energy carrier saved]] & "#" & Saving_measures[[#This Row],[The most similar sector]],Emiskoef,3,FALSE) -> 2.927857975 | T18: =VLOOKUP(Saving_measures[[#This Row],[Energy carrier saved]] & "#" & Saving_measures[[#This Row],[The most similar sector]],Emiskoef,4,FALSE) -> 0.5819644937 | U18: =Saving_measures[[#This Row],[EF of CO2 '[kg/GJ']]]+0.025*Saving_measures[[#This Row],[EF of CH4 '[g/GJ']]]+0.298*Saving_measures[[#This Row],[EF of N2O '[g/GJ']]] -> 74.09475185 | V18: =1000*Saving_measures[[#This Row],[Unit investments '[€/GJ']]]/Saving_measures[[#This Row],[EF of CO2 eq '[kg/GJ']]] -> 114.0805396
A19: Installation flue gas pre-heaters to boilers | B19: TYP | C19: =Saving_measures[[#This Row],[Measure]] & "#" & Saving_measures[[#This Row],[Cost type]] -> Installation flue gas pre-heaters to boilers#TYP | D19: 12.17379103 | E19: =VLOOKUP(Saving_measures[[#This Row],[Measure detail]],Potential_of_measures!$C$1:$E$192,3,0) -> 0 | F19: =Saving_measures[[#This Row],[Unit investments '[€/GJ']]]/Saving_measures[[#This Row],[Payback period w/o subsidy '[y']]] -> 12.17379103 | G19: =Saving_measures[[#This Row],[Energy saving potential '[TJ']]]*Saving_measures[[#This Row],[Unit investments '[€/GJ']]]*1000 -> 6667227.576 | H19: =Saving_measures[[#This Row],[Subsidy share '[%']]]*Saving_measures[[#This Row],[Investment costs '[€']]] -> 0 | I19: 1 | J19: =VLOOKUP(Saving_measures[[#This Row],[Measure detail]],Potential_of_measures!$C$1:$E$192,2,0) -> 547.6706112 | K19: 20 | L19: Fuels and heat | M19: Industry | N19: =Saving_measures[[#This Row],[Energy saving potential '[TJ']]]*Saving_measures[[#This Row],[EF of CO2 '[kg/GJ']]] -> 40444.45048 | O19: =Saving_measures[[#This Row],[Energy saving potential '[TJ']]]*Saving_measures[[#This Row],[EF of CH4 '[g/GJ']]] -> 1603.501767 | P19: =Saving_measures[[#This Row],[Energy saving potential '[TJ']]]*Saving_measures[[#This Row],[EF of N2O '[g/GJ']]] -> 318.72485 | Q19: =Saving_measures[[#This Row],[Energy saving potential '[TJ']]]*Saving_measures[[#This Row],[EF of CO2 eq '[kg/GJ']]] -> 40579.51803 | R19: =VLOOKUP(Saving_measures[[#This Row],[Energy carrier saved]] & "#" & Saving_measures[[#This Row],[The most similar sector]],Emiskoef,2,FALSE) -> 73.84812998 | S19: =VLOOKUP(Saving_measures[[#This Row],[Energy carrier saved]] & "#" & Saving_measures[[#This Row],[The most similar sector]],Emiskoef,3,FALSE) -> 2.927857975 | T19: =VLOOKUP(Saving_measures[[#This Row],[Energy carrier saved]] & "#" & Saving_measures[[#This Row],[The most similar sector]],Emiskoef,4,FALSE) -> 0.5819644937 | U19: =Saving_measures[[#This Row],[EF of CO2 '[kg/GJ']]]+0.025*Saving_measures[[#This Row],[EF of CH4 '[g/GJ']]]+0.298*Saving_measures[[#This Row],[EF of N2O '[g/GJ']]] -> 74.09475185 | V19: =1000*Saving_measures[[#This Row],[Unit investments '[€/GJ']]]/Saving_measures[[#This Row],[EF of CO2 eq '[kg/GJ']]] -> 164.3003145
A20: Installation of cogeneration units | B20: MAX | C20: =Saving_measures[[#This Row],[Measure]] & "#" & Saving_measures[[#This Row],[Cost type]] -> Installation of cogeneration units#MAX | D20: 39.21568627 | E20: =VLOOKUP(Saving_measures[[#This Row],[Measure detail]],Potential_of_measures!$C$1:$E$192,3,0) -> 0.5 | F20: =Saving_measures[[#This Row],[Unit investments '[€/GJ']]]/Saving_measures[[#This Row],[Payback period w/o subsidy '[y']]] -> 6.535947712 | G20: =Saving_measures[[#This Row],[Energy saving potential '[TJ']]]*Saving_measures[[#This Row],[Unit investments '[€/GJ']]]*1000 -> 17185949.53 | H20: =Saving_measures[[#This Row],[Subsidy share '[%']]]*Saving_measures[[#This Row],[Investment costs '[€']]] -> 8592974.763 | I20: 6 | J20: =VLOOKUP(Saving_measures[[#This Row],[Measure detail]],Potential_of_measures!$C$1:$E$192,2,0) -> 438.2417129 | K20: 15 | L20: Fuels and heat | M20: Industry | N20: =Saving_measures[[#This Row],[Energy saving potential '[TJ']]]*Saving_measures[[#This Row],[EF of CO2 '[kg/GJ']]] -> 32363.33098 | O20: =Saving_measures[[#This Row],[Energy saving potential '[TJ']]]*Saving_measures[[#This Row],[EF of CH4 '[g/GJ']]] -> 1283.109494 | P20: =Saving_measures[[#This Row],[Energy saving potential '[TJ']]]*Saving_measures[[#This Row],[EF of N2O '[g/GJ']]] -> 255.0411166 | Q20: =Saving_measures[[#This Row],[Energy saving potential '[TJ']]]*Saving_measures[[#This Row],[EF of CO2 eq '[kg/GJ']]] -> 32471.41097 | R20: =VLOOKUP(Saving_measures[[#This Row],[Energy carrier saved]] & "#" & Saving_measures[[#This Row],[The most similar sector]],Emiskoef,2,FALSE) -> 73.84812998 | S20: =VLOOKUP(Saving_measures[[#This Row],[Energy carrier saved]] & "#" & Saving_measures[[#This Row],[The most similar sector]],Emiskoef,3,FALSE) -> 2.927857975 | T20: =VLOOKUP(Saving_measures[[#This Row],[Energy carrier saved]] & "#" & Saving_measures[[#This Row],[The most similar sector]],Emiskoef,4,FALSE) -> 0.5819644937 | U20: =Saving_measures[[#This Row],[EF of CO2 '[kg/GJ']]]+0.025*Saving_measures[[#This Row],[EF of CH4 '[g/GJ']]]+0.298*Saving_measures[[#This Row],[EF of N2O '[g/GJ']]] -> 74.09475185 | V20: =1000*Saving_measures[[#This Row],[Unit investments '[€/GJ']]]/Saving_measures[[#This Row],[EF of CO2 eq '[kg/GJ']]] -> 529.2640207
A21: Installation of cogeneration units | B21: MIN | C21: =Saving_measures[[#This Row],[Measure]] & "#" & Saving_measures[[#This Row],[Cost type]] -> Installation of cogeneration units#MIN | D21: 13.7254902 | E21: =VLOOKUP(Saving_measures[[#This Row],[Measure detail]],Potential_of_measures!$C$1:$E$192,3,0) -> 0 | F21: =Saving_measures[[#This Row],[Unit investments '[€/GJ']]]/Saving_measures[[#This Row],[Payback period w/o subsidy '[y']]] -> 2.745098039 | G21: =Saving_measures[[#This Row],[Energy saving potential '[TJ']]]*Saving_measures[[#This Row],[Unit investments '[€/GJ']]]*1000 -> 6015082.334 | H21: =Saving_measures[[#This Row],[Subsidy share '[%']]]*Saving_measures[[#This Row],[Investment costs '[€']]] -> 0 | I21: 5 | J21: =VLOOKUP(Saving_measures[[#This Row],[Measure detail]],Potential_of_measures!$C$1:$E$192,2,0) -> 438.2417129 | K21: 15 | L21: Fuels and heat | M21: Industry | N21: =Saving_measures[[#This Row],[Energy saving potential '[TJ']]]*Saving_measures[[#This Row],[EF of CO2 '[kg/GJ']]] -> 32363.33098 | O21: =Saving_measures[[#This Row],[Energy saving potential '[TJ']]]*Saving_measures[[#This Row],[EF of CH4 '[g/GJ']]] -> 1283.109494 | P21: =Saving_measures[[#This Row],[Energy saving potential '[TJ']]]*Saving_measures[[#This Row],[EF of N2O '[g/GJ']]] -> 255.0411166 | Q21: =Saving_measures[[#This Row],[Energy saving potential '[TJ']]]*Saving_measures[[#This Row],[EF of CO2 eq '[kg/GJ']]] -> 32471.41097 | R21: =VLOOKUP(Saving_measures[[#This Row],[Energy carrier saved]] & "#" & Saving_measures[[#This Row],[The most similar sector]],Emiskoef,2,FALSE) -> 73.84812998 | S21: =VLOOKUP(Saving_measures[[#This Row],[Energy carrier saved]] & "#" & Saving_measures[[#This Row],[The most similar sector]],Emiskoef,3,FALSE) -> 2.927857975 | T21: =VLOOKUP(Saving_measures[[#This Row],[Energy carrier saved]] & "#" & Saving_measures[[#This Row],[The most similar sector]],Emiskoef,4,FALSE) -> 0.5819644937 | U21: =Saving_measures[[#This Row],[EF of CO2 '[kg/GJ']]]+0.025*Saving_measures[[#This Row],[EF of CH4 '[g/GJ']]]+0.298*Saving_measures[[#This Row],[EF of N2O '[g/GJ']]] -> 74.09475185 | V21: =1000*Saving_measures[[#This Row],[Unit investments '[€/GJ']]]/Saving_measures[[#This Row],[EF of CO2 eq '[kg/GJ']]] -> 185.2424072
A22: Installation of cogeneration units | B22: TYP | C22: =Saving_measures[[#This Row],[Measure]] & "#" & Saving_measures[[#This Row],[Cost type]] -> Installation of cogeneration units#TYP | D22: 31.37254902 | E22: =VLOOKUP(Saving_measures[[#This Row],[Measure detail]],Potential_of_measures!$C$1:$E$192,3,0) -> 0.1666666667 | F22: =Saving_measures[[#This Row],[Unit investments '[€/GJ']]]/Saving_measures[[#This Row],[Payback period w/o subsidy '[y']]] -> 7.843137255 | G22: =Saving_measures[[#This Row],[Energy saving potential '[TJ']]]*Saving_measures[[#This Row],[Unit investments '[€/GJ']]]*1000 -> 27497519.24 | H22: =Saving_measures[[#This Row],[Subsidy share '[%']]]*Saving_measures[[#This Row],[Investment costs '[€']]] -> 4582919.874 | I22: 4 | J22: =VLOOKUP(Saving_measures[[#This Row],[Measure detail]],Potential_of_measures!$C$1:$E$192,2,0) -> 876.4834258 | K22: 15 | L22: Fuels and heat | M22: Industry | N22: =Saving_measures[[#This Row],[Energy saving potential '[TJ']]]*Saving_measures[[#This Row],[EF of CO2 '[kg/GJ']]] -> 64726.66195 | O22: =Saving_measures[[#This Row],[Energy saving potential '[TJ']]]*Saving_measures[[#This Row],[EF of CH4 '[g/GJ']]] -> 2566.218988 | P22: =Saving_measures[[#This Row],[Energy saving potential '[TJ']]]*Saving_measures[[#This Row],[EF of N2O '[g/GJ']]] -> 510.0822331 | Q22: =Saving_measures[[#This Row],[Energy saving potential '[TJ']]]*Saving_measures[[#This Row],[EF of CO2 eq '[kg/GJ']]] -> 64942.82193 | R22: =VLOOKUP(Saving_measures[[#This Row],[Energy carrier saved]] & "#" & Saving_measures[[#This Row],[The most similar sector]],Emiskoef,2,FALSE) -> 73.84812998 | S22: =VLOOKUP(Saving_measures[[#This Row],[Energy carrier saved]] & "#" & Saving_measures[[#This Row],[The most similar sector]],Emiskoef,3,FALSE) -> 2.927857975 | T22: =VLOOKUP(Saving_measures[[#This Row],[Energy carrier saved]] & "#" & Saving_measures[[#This Row],[The most similar sector]],Emiskoef,4,FALSE) -> 0.5819644937 | U22: =Saving_measures[[#This Row],[EF of CO2 '[kg/GJ']]]+0.025*Saving_measures[[#This Row],[EF of CH4 '[g/GJ']]]+0.298*Saving_measures[[#This Row],[EF of N2O '[g/GJ']]] -> 74.09475185 | V22: =1000*Saving_measures[[#This Row],[Unit investments '[€/GJ']]]/Saving_measures[[#This Row],[EF of CO2 eq '[kg/GJ']]] -> 423.4112166
A23: Installation of frequency inventors | B23: MAX | C23: =Saving_measures[[#This Row],[Measure]] & "#" & Saving_measures[[#This Row],[Cost type]] -> Installation of frequency inventors#MAX | D23: 211.7647059 | E23: =VLOOKUP(Saving_measures[[#This Row],[Measure detail]],Potential_of_measures!$C$1:$E$192,3,0) -> 0.5833333333 | F23: =Saving_measures[[#This Row],[Unit investments '[€/GJ']]]/Saving_measures[[#This Row],[Payback period w/o subsidy '[y']]] -> 17.64705882 | G23: =Saving_measures[[#This Row],[Energy saving potential '[TJ']]]*Saving_measures[[#This Row],[Unit investments '[€/GJ']]]*1000 -> 85717282.3 | H23: =Saving_measures[[#This Row],[Subsidy share '[%']]]*Saving_measures[[#This Row],[Investment costs '[€']]] -> 50001748.01 | I23: 12 | J23: =VLOOKUP(Saving_measures[[#This Row],[Measure detail]],Potential_of_measures!$C$1:$E$192,2,0) -> 404.7760553 | K23: 15 | L23: Electricity | M23: Industry | N23: =Saving_measures[[#This Row],[Energy saving potential '[TJ']]]*Saving_measures[[#This Row],[EF of CO2 '[kg/GJ']]] -> 115409.7489 | O23: =Saving_measures[[#This Row],[Energy saving potential '[TJ']]]*Saving_measures[[#This Row],[EF of CH4 '[g/GJ']]] -> 1153.611758 | P23: =Saving_measures[[#This Row],[Energy saving potential '[TJ']]]*Saving_measures[[#This Row],[EF of N2O '[g/GJ']]] -> 951.22373 | Q23: =Saving_measures[[#This Row],[Energy saving potential '[TJ']]]*Saving_measures[[#This Row],[EF of CO2 eq '[kg/GJ']]] -> 115722.0539 | R23: =VLOOKUP(Saving_measures[[#This Row],[Energy carrier saved]] & "#" & Saving_measures[[#This Row],[The most similar sector]],Emiskoef,2,FALSE) -> 285.12 | S23: =VLOOKUP(Saving_measures[[#This Row],[Energy carrier saved]] & "#" & Saving_measures[[#This Row],[The most similar sector]],Emiskoef,3,FALSE) -> 2.85 | T23: =VLOOKUP(Saving_measures[[#This Row],[Energy carrier saved]] & "#" & Saving_measures[[#This Row],[The most similar sector]],Emiskoef,4,FALSE) -> 2.35 | U23: =Saving_measures[[#This Row],[EF of CO2 '[kg/GJ']]]+0.025*Saving_measures[[#This Row],[EF of CH4 '[g/GJ']]]+0.298*Saving_measures[[#This Row],[EF of N2O '[g/GJ']]] -> 285.89155 | V23: =1000*Saving_measures[[#This Row],[Unit investments '[€/GJ']]]/Saving_measures[[#This Row],[EF of CO2 eq '[kg/GJ']]] -> 740.7169113
A24: Installation of frequency inventors | B24: MIN | C24: =Saving_measures[[#This Row],[Measure]] & "#" & Saving_measures[[#This Row],[Cost type]] -> Installation of frequency inventors#MIN | D24: 58.82352941 | E24: =VLOOKUP(Saving_measures[[#This Row],[Measure detail]],Potential_of_measures!$C$1:$E$192,3,0) -> 0 | F24: =Saving_measures[[#This Row],[Unit investments '[€/GJ']]]/Saving_measures[[#This Row],[Payback period w/o subsidy '[y']]] -> 29.41176471 | G24: =Saving_measures[[#This Row],[Energy saving potential '[TJ']]]*Saving_measures[[#This Row],[Unit investments '[€/GJ']]]*1000 -> 2645595.133 | H24: =Saving_measures[[#This Row],[Subsidy share '[%']]]*Saving_measures[[#This Row],[Investment costs '[€']]] -> 0 | I24: 2 | J24: =VLOOKUP(Saving_measures[[#This Row],[Measure detail]],Potential_of_measures!$C$1:$E$192,2,0) -> 44.97511726 | K24: 15 | L24: Electricity | M24: Industry | N24: =Saving_measures[[#This Row],[Energy saving potential '[TJ']]]*Saving_measures[[#This Row],[EF of CO2 '[kg/GJ']]] -> 12823.30543 | O24: =Saving_measures[[#This Row],[Energy saving potential '[TJ']]]*Saving_measures[[#This Row],[EF of CH4 '[g/GJ']]] -> 128.1790842 | P24: =Saving_measures[[#This Row],[Energy saving potential '[TJ']]]*Saving_measures[[#This Row],[EF of N2O '[g/GJ']]] -> 105.6915256 | Q24: =Saving_measures[[#This Row],[Energy saving potential '[TJ']]]*Saving_measures[[#This Row],[EF of CO2 eq '[kg/GJ']]] -> 12858.00598 | R24: =VLOOKUP(Saving_measures[[#This Row],[Energy carrier saved]] & "#" & Saving_measures[[#This Row],[The most similar sector]],Emiskoef,2,FALSE) -> 285.12 | S24: =VLOOKUP(Saving_measures[[#This Row],[Energy carrier saved]] & "#" & Saving_measures[[#This Row],[The most similar sector]],Emiskoef,3,FALSE) -> 2.85 | T24: =VLOOKUP(Saving_measures[[#This Row],[Energy carrier saved]] & "#" & Saving_measures[[#This Row],[The most similar sector]],Emiskoef,4,FALSE) -> 2.35 | U24: =Saving_measures[[#This Row],[EF of CO2 '[kg/GJ']]]+0.025*Saving_measures[[#This Row],[EF of CH4 '[g/GJ']]]+0.298*Saving_measures[[#This Row],[EF of N2O '[g/GJ']]] -> 285.89155 | V24: =1000*Saving_measures[[#This Row],[Unit investments '[€/GJ']]]/Saving_measures[[#This Row],[EF of CO2 eq '[kg/GJ']]] -> 205.7546976
A25: Installation of frequency inventors | B25: TYP | C25: =Saving_measures[[#This Row],[Measure]] & "#" & Saving_measures[[#This Row],[Cost type]] -> Installation of frequency inventors#TYP | D25: 82.35294118 | E25: =VLOOKUP(Saving_measures[[#This Row],[Measure detail]],Potential_of_measures!$C$1:$E$192,3,0) -> 0.1666666667 | F25: =Saving_measures[[#This Row],[Unit investments '[€/GJ']]]/Saving_measures[[#This Row],[Payback period w/o subsidy '[y']]] -> 13.7254902 | G25: =Saving_measures[[#This Row],[Energy saving potential '[TJ']]]*Saving_measures[[#This Row],[Unit investments '[€/GJ']]]*1000 -> 37038331.86 | H25: =Saving_measures[[#This Row],[Subsidy share '[%']]]*Saving_measures[[#This Row],[Investment costs '[€']]] -> 6173055.31 | I25: 6 | J25: =VLOOKUP(Saving_measures[[#This Row],[Measure detail]],Potential_of_measures!$C$1:$E$192,2,0) -> 449.7511726 | K25: 15 | L25: Electricity | M25: Industry | N25: =Saving_measures[[#This Row],[Energy saving potential '[TJ']]]*Saving_measures[[#This Row],[EF of CO2 '[kg/GJ']]] -> 128233.0543 | O25: =Saving_measures[[#This Row],[Energy saving potential '[TJ']]]*Saving_measures[[#This Row],[EF of CH4 '[g/GJ']]] -> 1281.790842 | P25: =Saving_measures[[#This Row],[Energy saving potential '[TJ']]]*Saving_measures[[#This Row],[EF of N2O '[g/GJ']]] -> 1056.915256 | Q25: =Saving_measures[[#This Row],[Energy saving potential '[TJ']]]*Saving_measures[[#This Row],[EF of CO2 eq '[kg/GJ']]] -> 128580.0598 | R25: =VLOOKUP(Saving_measures[[#This Row],[Energy carrier saved]] & "#" & Saving_measures[[#This Row],[The most similar sector]],Emiskoef,2,FALSE) -> 285.12 | S25: =VLOOKUP(Saving_measures[[#This Row],[Energy carrier saved]] & "#" & Saving_measures[[#This Row],[The most similar sector]],Emiskoef,3,FALSE) -> 2.85 | T25: =VLOOKUP(Saving_measures[[#This Row],[Energy carrier saved]] & "#" & Saving_measures[[#This Row],[The most similar sector]],Emiskoef,4,FALSE) -> 2.35 | U25: =Saving_measures[[#This Row],[EF of CO2 '[kg/GJ']]]+0.025*Saving_measures[[#This Row],[EF of CH4 '[g/GJ']]]+0.298*Saving_measures[[#This Row],[EF of N2O '[g/GJ']]] -> 285.89155 | V25: =1000*Saving_measures[[#This Row],[Unit investments '[€/GJ']]]/Saving_measures[[#This Row],[EF of CO2 eq '[kg/GJ']]] -> 288.0565766
A26: Installation of heat pumps | B26: MAX | C26: =Saving_measures[[#This Row],[Measure]] & "#" & Saving_measures[[#This Row],[Cost type]] -> Installation of heat pumps#MAX | D26: 92.49455721 | E26: =VLOOKUP(Saving_measures[[#This Row],[Measure detail]],Potential_of_measures!$C$1:$E$192,3,0) -> 0.5 | F26: =Saving_measures[[#This Row],[Unit investments '[€/GJ']]]/Saving_measures[[#This Row],[Payback period w/o subsidy '[y']]] -> 9.249455721 | G26: =Saving_measures[[#This Row],[Energy saving potential '[TJ']]]*Saving_measures[[#This Row],[Unit investments '[€/GJ']]]*1000 -> 469414193.5 | H26: =Saving_measures[[#This Row],[Subsidy share '[%']]]*Saving_measures[[#This Row],[Investment costs '[€']]] -> 234707096.8 | I26: 10 | J26: =VLOOKUP(Saving_measures[[#This Row],[Measure detail]],Potential_of_measures!$C$1:$E$192,2,0) -> 5075.046659 | K26: 15 | L26: Fuels and heat | M26: Industry | N26: =Saving_measures[[#This Row],[Energy saving potential '[TJ']]]*Saving_measures[[#This Row],[EF of CO2 '[kg/GJ']]] -> 374782.7053 | O26: =Saving_measures[[#This Row],[Energy saving potential '[TJ']]]*Saving_measures[[#This Row],[EF of CH4 '[g/GJ']]] -> 14859.01583 | P26: =Saving_measures[[#This Row],[Energy saving potential '[TJ']]]*Saving_measures[[#This Row],[EF of N2O '[g/GJ']]] -> 2953.496959 | Q26: =Saving_measures[[#This Row],[Energy saving potential '[TJ']]]*Saving_measures[[#This Row],[EF of CO2 eq '[kg/GJ']]] -> 376034.3228 | R26: =VLOOKUP(Saving_measures[[#This Row],[Energy carrier saved]] & "#" & Saving_measures[[#This Row],[The most similar sector]],Emiskoef,2,FALSE) -> 73.84812998 | S26: =VLOOKUP(Saving_measures[[#This Row],[Energy carrier saved]] & "#" & Saving_measures[[#This Row],[The most similar sector]],Emiskoef,3,FALSE) -> 2.927857975 | T26: =VLOOKUP(Saving_measures[[#This Row],[Energy carrier saved]] & "#" & Saving_measures[[#This Row],[The most similar sector]],Emiskoef,4,FALSE) -> 0.5819644937 | U26: =Saving_measures[[#This Row],[EF of CO2 '[kg/GJ']]]+0.025*Saving_measures[[#This Row],[EF of CH4 '[g/GJ']]]+0.298*Saving_measures[[#This Row],[EF of N2O '[g/GJ']]] -> 74.09475185 | V26: =1000*Saving_measures[[#This Row],[Unit investments '[€/GJ']]]/Saving_measures[[#This Row],[EF of CO2 eq '[kg/GJ']]] -> 1248.328052
A27: Installation of heat pumps | B27: MIN | C27: =Saving_measures[[#This Row],[Measure]] & "#" & Saving_measures[[#This Row],[Cost type]] -> Installation of heat pumps#MIN | D27: 50.71661562 | E27: =VLOOKUP(Saving_measures[[#This Row],[Measure detail]],Potential_of_measures!$C$1:$E$192,3,0) -> 0 | F27: =Saving_measures[[#This Row],[Unit investments '[€/GJ']]]/Saving_measures[[#This Row],[Payback period w/o subsidy '[y']]] -> 16.90553854 | G27: =Saving_measures[[#This Row],[Energy saving potential '[TJ']]]*Saving_measures[[#This Row],[Unit investments '[€/GJ']]]*1000 -> 34318558.75 | H27: =Saving_measures[[#This Row],[Subsidy share '[%']]]*Saving_measures[[#This Row],[Investment costs '[€']]] -> 0 | I27: 3 | J27: =VLOOKUP(Saving_measures[[#This Row],[Measure detail]],Potential_of_measures!$C$1:$E$192,2,0) -> 676.6728878 | K27: 15 | L27: Fuels and heat | M27: Industry | N27: =Saving_measures[[#This Row],[Energy saving potential '[TJ']]]*Saving_measures[[#This Row],[EF of CO2 '[kg/GJ']]] -> 49971.02737 | O27: =Saving_measures[[#This Row],[Energy saving potential '[TJ']]]*Saving_measures[[#This Row],[EF of CH4 '[g/GJ']]] -> 1981.202111 | P27: =Saving_measures[[#This Row],[Energy saving potential '[TJ']]]*Saving_measures[[#This Row],[EF of N2O '[g/GJ']]] -> 393.7995946 | Q27: =Saving_measures[[#This Row],[Energy saving potential '[TJ']]]*Saving_measures[[#This Row],[EF of CO2 eq '[kg/GJ']]] -> 50137.9097 | R27: =VLOOKUP(Saving_measures[[#This Row],[Energy carrier saved]] & "#" & Saving_measures[[#This Row],[The most similar sector]],Emiskoef,2,FALSE) -> 73.84812998 | S27: =VLOOKUP(Saving_measures[[#This Row],[Energy carrier saved]] & "#" & Saving_measures[[#This Row],[The most similar sector]],Emiskoef,3,FALSE) -> 2.927857975 | T27: =VLOOKUP(Saving_measures[[#This Row],[Energy carrier saved]] & "#" & Saving_measures[[#This Row],[The most similar sector]],Emiskoef,4,FALSE) -> 0.5819644937 | U27: =Saving_measures[[#This Row],[EF of CO2 '[kg/GJ']]]+0.025*Saving_measures[[#This Row],[EF of CH4 '[g/GJ']]]+0.298*Saving_measures[[#This Row],[EF of N2O '[g/GJ']]] -> 74.09475185 | V27: =1000*Saving_measures[[#This Row],[Unit investments '[€/GJ']]]/Saving_measures[[#This Row],[EF of CO2 eq '[kg/GJ']]] -> 684.4832374
A28: Installation of heat pumps | B28: TYP | C28: =Saving_measures[[#This Row],[Measure]] & "#" & Saving_measures[[#This Row],[Cost type]] -> Installation of heat pumps#TYP | D28: 73.04274619 | E28: =VLOOKUP(Saving_measures[[#This Row],[Measure detail]],Potential_of_measures!$C$1:$E$192,3,0) -> 0.1666666667 | F28: =Saving_measures[[#This Row],[Unit investments '[€/GJ']]]/Saving_measures[[#This Row],[Payback period w/o subsidy '[y']]] -> 12.17379103 | G28: =Saving_measures[[#This Row],[Energy saving potential '[TJ']]]*Saving_measures[[#This Row],[Unit investments '[€/GJ']]]*1000 -> 197704184 | H28: =Saving_measures[[#This Row],[Subsidy share '[%']]]*Saving_measures[[#This Row],[Investment costs '[€']]] -> 32950697.33 | I28: 6 | J28: =VLOOKUP(Saving_measures[[#This Row],[Measure detail]],Potential_of_measures!$C$1:$E$192,2,0) -> 2706.691551 | K28: 15 | L28: Fuels and heat | M28: Industry | N28: =Saving_measures[[#This Row],[Energy saving potential '[TJ']]]*Saving_measures[[#This Row],[EF of CO2 '[kg/GJ']]] -> 199884.1095 | O28: =Saving_measures[[#This Row],[Energy saving potential '[TJ']]]*Saving_measures[[#This Row],[EF of CH4 '[g/GJ']]] -> 7924.808444 | P28: =Saving_measures[[#This Row],[Energy saving potential '[TJ']]]*Saving_measures[[#This Row],[EF of N2O '[g/GJ']]] -> 1575.198378 | Q28: =Saving_measures[[#This Row],[Energy saving potential '[TJ']]]*Saving_measures[[#This Row],[EF of CO2 eq '[kg/GJ']]] -> 200551.6388 | R28: =VLOOKUP(Saving_measures[[#This Row],[Energy carrier saved]] & "#" & Saving_measures[[#This Row],[The most similar sector]],Emiskoef,2,FALSE) -> 73.84812998 | S28: =VLOOKUP(Saving_measures[[#This Row],[Energy carrier saved]] & "#" & Saving_measures[[#This Row],[The most similar sector]],Emiskoef,3,FALSE) -> 2.927857975 | T28: =VLOOKUP(Saving_measures[[#This Row],[Energy carrier saved]] & "#" & Saving_measures[[#This Row],[The most similar sector]],Emiskoef,4,FALSE) -> 0.5819644937 | U28: =Saving_measures[[#This Row],[EF of CO2 '[kg/GJ']]]+0.025*Saving_measures[[#This Row],[EF of CH4 '[g/GJ']]]+0.298*Saving_measures[[#This Row],[EF of N2O '[g/GJ']]] -> 74.09475185 | V28: =1000*Saving_measures[[#This Row],[Unit investments '[€/GJ']]]/Saving_measures[[#This Row],[EF of CO2 eq '[kg/GJ']]] -> 985.8018871
A29: Installation of photovoltaic systems (for electricity generation) | B29: MAX | C29: =Saving_measures[[#This Row],[Measure]] & "#" & Saving_measures[[#This Row],[Cost type]] -> Installation of photovoltaic systems (for electricity generation)#MAX | D29: 670.5882353 | E29: =VLOOKUP(Saving_measures[[#This Row],[Measure detail]],Potential_of_measures!$C$1:$E$192,3,0) -> 0.8214285714 | F29: =Saving_measures[[#This Row],[Unit investments '[€/GJ']]]/Saving_measures[[#This Row],[Payback period w/o subsidy '[y']]] -> 23.94957983 | G29: =Saving_measures[[#This Row],[Energy saving potential '[TJ']]]*Saving_measures[[#This Row],[Unit investments '[€/GJ']]]*1000 -> 1142115605 | H29: =Saving_measures[[#This Row],[Subsidy share '[%']]]*Saving_measures[[#This Row],[Investment costs '[€']]] -> 938166389.6 | I29: 28 | J29: =VLOOKUP(Saving_measures[[#This Row],[Measure detail]],Potential_of_measures!$C$1:$E$192,2,0) -> 1703.154849 | K29: 20 | L29: Electricity | M29: Industry | N29: =Saving_measures[[#This Row],[Energy saving potential '[TJ']]]*Saving_measures[[#This Row],[EF of CO2 '[kg/GJ']]] -> 485603.5106 | O29: =Saving_measures[[#This Row],[Energy saving potential '[TJ']]]*Saving_measures[[#This Row],[EF of CH4 '[g/GJ']]] -> 4853.99132 | P29: =Saving_measures[[#This Row],[Energy saving potential '[TJ']]]*Saving_measures[[#This Row],[EF of N2O '[g/GJ']]] -> 4002.413895 | Q29: =Saving_measures[[#This Row],[Energy saving potential '[TJ']]]*Saving_measures[[#This Row],[EF of CO2 eq '[kg/GJ']]] -> 486917.5797 | R29: =VLOOKUP(Saving_measures[[#This Row],[Energy carrier saved]] & "#" & Saving_measures[[#This Row],[The most similar sector]],Emiskoef,2,FALSE) -> 285.12 | S29: =VLOOKUP(Saving_measures[[#This Row],[Energy carrier saved]] & "#" & Saving_measures[[#This Row],[The most similar sector]],Emiskoef,3,FALSE) -> 2.85 | T29: =VLOOKUP(Saving_measures[[#This Row],[Energy carrier saved]] & "#" & Saving_measures[[#This Row],[The most similar sector]],Emiskoef,4,FALSE) -> 2.35 | U29: =Saving_measures[[#This Row],[EF of CO2 '[kg/GJ']]]+0.025*Saving_measures[[#This Row],[EF of CH4 '[g/GJ']]]+0.298*Saving_measures[[#This Row],[EF of N2O '[g/GJ']]] -> 285.89155 | V29: =1000*Saving_measures[[#This Row],[Unit investments '[€/GJ']]]/Saving_measures[[#This Row],[EF of CO2 eq '[kg/GJ']]] -> 2345.603552
A30: Installation of photovoltaic systems (for electricity generation) | B30: MIN | C30: =Saving_measures[[#This Row],[Measure]] & "#" & Saving_measures[[#This Row],[Cost type]] -> Installation of photovoltaic systems (for electricity generation)#MIN | D30: 186.2745098 | E30: =VLOOKUP(Saving_measures[[#This Row],[Measure detail]],Potential_of_measures!$C$1:$E$192,3,0) -> 0.5 | F30: =Saving_measures[[#This Row],[Unit investments '[€/GJ']]]/Saving_measures[[#This Row],[Payback period w/o subsidy '[y']]] -> 18.62745098 | G30: =Saving_measures[[#This Row],[Energy saving potential '[TJ']]]*Saving_measures[[#This Row],[Unit investments '[€/GJ']]]*1000 -> 63450866.93 | H30: =Saving_measures[[#This Row],[Subsidy share '[%']]]*Saving_measures[[#This Row],[Investment costs '[€']]] -> 31725433.46 | I30: 10 | J30: =VLOOKUP(Saving_measures[[#This Row],[Measure detail]],Potential_of_measures!$C$1:$E$192,2,0) -> 340.6309698 | K30: 20 | L30: Electricity | M30: Industry | N30: =Saving_measures[[#This Row],[Energy saving potential '[TJ']]]*Saving_measures[[#This Row],[EF of CO2 '[kg/GJ']]] -> 97120.70212 | O30: =Saving_measures[[#This Row],[Energy saving potential '[TJ']]]*Saving_measures[[#This Row],[EF of CH4 '[g/GJ']]] -> 970.798264 | P30: =Saving_measures[[#This Row],[Energy saving potential '[TJ']]]*Saving_measures[[#This Row],[EF of N2O '[g/GJ']]] -> 800.4827791 | Q30: =Saving_measures[[#This Row],[Energy saving potential '[TJ']]]*Saving_measures[[#This Row],[EF of CO2 eq '[kg/GJ']]] -> 97383.51594 | R30: =VLOOKUP(Saving_measures[[#This Row],[Energy carrier saved]] & "#" & Saving_measures[[#This Row],[The most similar sector]],Emiskoef,2,FALSE) -> 285.12 | S30: =VLOOKUP(Saving_measures[[#This Row],[Energy carrier saved]] & "#" & Saving_measures[[#This Row],[The most similar sector]],Emiskoef,3,FALSE) -> 2.85 | T30: =VLOOKUP(Saving_measures[[#This Row],[Energy carrier saved]] & "#" & Saving_measures[[#This Row],[The most similar sector]],Emiskoef,4,FALSE) -> 2.35 | U30: =Saving_measures[[#This Row],[EF of CO2 '[kg/GJ']]]+0.025*Saving_measures[[#This Row],[EF of CH4 '[g/GJ']]]+0.298*Saving_measures[[#This Row],[EF of N2O '[g/GJ']]] -> 285.89155 | V30: =1000*Saving_measures[[#This Row],[Unit investments '[€/GJ']]]/Saving_measures[[#This Row],[EF of CO2 eq '[kg/GJ']]] -> 651.5565423
A31: Installation of photovoltaic systems (for electricity generation) | B31: TYP | C31: =Saving_measures[[#This Row],[Measure]] & "#" & Saving_measures[[#This Row],[Cost type]] -> Installation of photovoltaic systems (for electricity generation)#TYP | D31: 260.7843137 | E31: =VLOOKUP(Saving_measures[[#This Row],[Measure detail]],Potential_of_measures!$C$1:$E$192,3,0) -> 0.7368421053 | F31: =Saving_measures[[#This Row],[Unit investments '[€/GJ']]]/Saving_measures[[#This Row],[Payback period w/o subsidy '[y']]] -> 13.7254902 | G31: =Saving_measures[[#This Row],[Energy saving potential '[TJ']]]*Saving_measures[[#This Row],[Unit investments '[€/GJ']]]*1000 -> 1243636992 | H31: =Saving_measures[[#This Row],[Subsidy share '[%']]]*Saving_measures[[#This Row],[Investment costs '[€']]] -> 916364099.2 | I31: 19 | J31: =VLOOKUP(Saving_measures[[#This Row],[Measure detail]],Potential_of_measures!$C$1:$E$192,2,0) -> 4768.833578 | K31: 20 | L31: Electricity | M31: Industry | N31: =Saving_measures[[#This Row],[Energy saving potential '[TJ']]]*Saving_measures[[#This Row],[EF of CO2 '[kg/GJ']]] -> 1359689.83 | O31: =Saving_measures[[#This Row],[Energy saving potential '[TJ']]]*Saving_measures[[#This Row],[EF of CH4 '[g/GJ']]] -> 13591.1757 | P31: =Saving_measures[[#This Row],[Energy saving potential '[TJ']]]*Saving_measures[[#This Row],[EF of N2O '[g/GJ']]] -> 11206.75891 | Q31: =Saving_measures[[#This Row],[Energy saving potential '[TJ']]]*Saving_measures[[#This Row],[EF of CO2 eq '[kg/GJ']]] -> 1363369.223 | R31: =VLOOKUP(Saving_measures[[#This Row],[Energy carrier saved]] & "#" & Saving_measures[[#This Row],[The most similar sector]],Emiskoef,2,FALSE) -> 285.12 | S31: =VLOOKUP(Saving_measures[[#This Row],[Energy carrier saved]] & "#" & Saving_measures[[#This Row],[The most similar sector]],Emiskoef,3,FALSE) -> 2.85 | T31: =VLOOKUP(Saving_measures[[#This Row],[Energy carrier saved]] & "#" & Saving_measures[[#This Row],[The most similar sector]],Emiskoef,4,FALSE) -> 2.35 | U31: =Saving_measures[[#This Row],[EF of CO2 '[kg/GJ']]]+0.025*Saving_measures[[#This Row],[EF of CH4 '[g/GJ']]]+0.298*Saving_measures[[#This Row],[EF of N2O '[g/GJ']]] -> 285.89155 | V31: =1000*Saving_measures[[#This Row],[Unit investments '[€/GJ']]]/Saving_measures[[#This Row],[EF of CO2 eq '[kg/GJ']]] -> 912.1791593
A32: Installation of solar thermal systems (for heat generation) | B32: MAX | C32: =Saving_measures[[#This Row],[Measure]] & "#" & Saving_measures[[#This Row],[Cost type]] -> Installation of solar thermal systems (for heat generation)#MAX | D32: 488.5366877 | E32: =VLOOKUP(Saving_measures[[#This Row],[Measure detail]],Potential_of_measures!$C$1:$E$192,3,0) -> 0.8214285714 | F32: =Saving_measures[[#This Row],[Unit investments '[€/GJ']]]/Saving_measures[[#This Row],[Payback period w/o subsidy '[y']]] -> 17.44773885 | G32: =Saving_measures[[#This Row],[Energy saving potential '[TJ']]]*Saving_measures[[#This Row],[Unit investments '[€/GJ']]]*1000 -> 18364194.05 | H32: =Saving_measures[[#This Row],[Subsidy share '[%']]]*Saving_measures[[#This Row],[Investment costs '[€']]] -> 15084873.69 | I32: 28 | J32: =VLOOKUP(Saving_measures[[#This Row],[Measure detail]],Potential_of_measures!$C$1:$E$192,2,0) -> 37.59020462 | K32: 20 | L32: Heat | M32: Industry | N32: =Saving_measures[[#This Row],[Energy saving potential '[TJ']]]*Saving_measures[[#This Row],[EF of CO2 '[kg/GJ']]] -> 3511.804443 | O32: =Saving_measures[[#This Row],[Energy saving potential '[TJ']]]*Saving_measures[[#This Row],[EF of CH4 '[g/GJ']]] -> 51.20233257 | P32: =Saving_measures[[#This Row],[Energy saving potential '[TJ']]]*Saving_measures[[#This Row],[EF of N2O '[g/GJ']]] -> 53.34938773 | Q32: =Saving_measures[[#This Row],[Energy saving potential '[TJ']]]*Saving_measures[[#This Row],[EF of CO2 eq '[kg/GJ']]] -> 3528.982618 | R32: =VLOOKUP(Saving_measures[[#This Row],[Energy carrier saved]] & "#" & Saving_measures[[#This Row],[The most similar sector]],Emiskoef,2,FALSE) -> 93.42339256 | S32: =VLOOKUP(Saving_measures[[#This Row],[Energy carrier saved]] & "#" & Saving_measures[[#This Row],[The most similar sector]],Emiskoef,3,FALSE) -> 1.362119017 | T32: =VLOOKUP(Saving_measures[[#This Row],[Energy carrier saved]] & "#" & Saving_measures[[#This Row],[The most similar sector]],Emiskoef,4,FALSE) -> 1.419236428 | U32: =Saving_measures[[#This Row],[EF of CO2 '[kg/GJ']]]+0.025*Saving_measures[[#This Row],[EF of CH4 '[g/GJ']]]+0.298*Saving_measures[[#This Row],[EF of N2O '[g/GJ']]] -> 93.88037799 | V32: =1000*Saving_measures[[#This Row],[Unit investments '[€/GJ']]]/Saving_measures[[#This Row],[EF of CO2 eq '[kg/GJ']]] -> 5203.821056
A33: Installation of solar thermal systems (for heat generation) | B33: MIN | C33: =Saving_measures[[#This Row],[Measure]] & "#" & Saving_measures[[#This Row],[Cost type]] -> Installation of solar thermal systems (for heat generation)#MIN | D33: 218.3299463 | E33: =VLOOKUP(Saving_measures[[#This Row],[Measure detail]],Potential_of_measures!$C$1:$E$192,3,0) -> 0.6666666667 | F33: =Saving_measures[[#This Row],[Unit investments '[€/GJ']]]/Saving_measures[[#This Row],[Payback period w/o subsidy '[y']]] -> 14.55532976 | G33: =Saving_measures[[#This Row],[Energy saving potential '[TJ']]]*Saving_measures[[#This Row],[Unit investments '[€/GJ']]]*1000 -> 3517314.582 | H33: =Saving_measures[[#This Row],[Subsidy share '[%']]]*Saving_measures[[#This Row],[Investment costs '[€']]] -> 2344876.388 | I33: 15 | J33: =VLOOKUP(Saving_measures[[#This Row],[Measure detail]],Potential_of_measures!$C$1:$E$192,2,0) -> 16.11008769 | K33: 20 | L33: Heat | M33: Industry | N33: =Saving_measures[[#This Row],[Energy saving potential '[TJ']]]*Saving_measures[[#This Row],[EF of CO2 '[kg/GJ']]] -> 1505.059047 | O33: =Saving_measures[[#This Row],[Energy saving potential '[TJ']]]*Saving_measures[[#This Row],[EF of CH4 '[g/GJ']]] -> 21.94385682 | P33: =Saving_measures[[#This Row],[Energy saving potential '[TJ']]]*Saving_measures[[#This Row],[EF of N2O '[g/GJ']]] -> 22.86402331 | Q33: =Saving_measures[[#This Row],[Energy saving potential '[TJ']]]*Saving_measures[[#This Row],[EF of CO2 eq '[kg/GJ']]] -> 1512.421122 | R33: =VLOOKUP(Saving_measures[[#This Row],[Energy carrier saved]] & "#" & Saving_measures[[#This Row],[The most similar sector]],Emiskoef,2,FALSE) -> 93.42339256 | S33: =VLOOKUP(Saving_measures[[#This Row],[Energy carrier saved]] & "#" & Saving_measures[[#This Row],[The most similar sector]],Emiskoef,3,FALSE) -> 1.362119017 | T33: =VLOOKUP(Saving_measures[[#This Row],[Energy carrier saved]] & "#" & Saving_measures[[#This Row],[The most similar sector]],Emiskoef,4,FALSE) -> 1.419236428 | U33: =Saving_measures[[#This Row],[EF of CO2 '[kg/GJ']]]+0.025*Saving_measures[[#This Row],[EF of CH4 '[g/GJ']]]+0.298*Saving_measures[[#This Row],[EF of N2O '[g/GJ']]] -> 93.88037799 | V33: =1000*Saving_measures[[#This Row],[Unit investments '[€/GJ']]]/Saving_measures[[#This Row],[EF of CO2 eq '[kg/GJ']]] -> 2325.618527
A34: Installation of solar thermal systems (for heat generation) | B34: TYP | C34: =Saving_measures[[#This Row],[Measure]] & "#" & Saving_measures[[#This Row],[Cost type]] -> Installation of solar thermal systems (for heat generation)#TYP | D34: 312.3960665 | E34: =VLOOKUP(Saving_measures[[#This Row],[Measure detail]],Potential_of_measures!$C$1:$E$192,3,0) -> 0.8 | F34: =Saving_measures[[#This Row],[Unit investments '[€/GJ']]]/Saving_measures[[#This Row],[Payback period w/o subsidy '[y']]] -> 12.49584266 | G34: =Saving_measures[[#This Row],[Energy saving potential '[TJ']]]*Saving_measures[[#This Row],[Unit investments '[€/GJ']]]*1000 -> 16775760.09 | H34: =Saving_measures[[#This Row],[Subsidy share '[%']]]*Saving_measures[[#This Row],[Investment costs '[€']]] -> 13420608.07 | I34: 25 | J34: =VLOOKUP(Saving_measures[[#This Row],[Measure detail]],Potential_of_measures!$C$1:$E$192,2,0) -> 53.70029232 | K34: 20 | L34: Heat | M34: Industry | N34: =Saving_measures[[#This Row],[Energy saving potential '[TJ']]]*Saving_measures[[#This Row],[EF of CO2 '[kg/GJ']]] -> 5016.863489 | O34: =Saving_measures[[#This Row],[Energy saving potential '[TJ']]]*Saving_measures[[#This Row],[EF of CH4 '[g/GJ']]] -> 73.14618939 | P34: =Saving_measures[[#This Row],[Energy saving potential '[TJ']]]*Saving_measures[[#This Row],[EF of N2O '[g/GJ']]] -> 76.21341104 | Q34: =Saving_measures[[#This Row],[Energy saving potential '[TJ']]]*Saving_measures[[#This Row],[EF of CO2 eq '[kg/GJ']]] -> 5041.403741 | R34: =VLOOKUP(Saving_measures[[#This Row],[Energy carrier saved]] & "#" & Saving_measures[[#This Row],[The most similar sector]],Emiskoef,2,FALSE) -> 93.42339256 | S34: =VLOOKUP(Saving_measures[[#This Row],[Energy carrier saved]] & "#" & Saving_measures[[#This Row],[The most similar sector]],Emiskoef,3,FALSE) -> 1.362119017 | T34: =VLOOKUP(Saving_measures[[#This Row],[Energy carrier saved]] & "#" & Saving_measures[[#This Row],[The most similar sector]],Emiskoef,4,FALSE) -> 1.419236428 | U34: =Saving_measures[[#This Row],[EF of CO2 '[kg/GJ']]]+0.025*Saving_measures[[#This Row],[EF of CH4 '[g/GJ']]]+0.298*Saving_measures[[#This Row],[EF of N2O '[g/GJ']]] -> 93.88037799 | V34: =1000*Saving_measures[[#This Row],[Unit investments '[€/GJ']]]/Saving_measures[[#This Row],[EF of CO2 eq '[kg/GJ']]] -> 3327.597025
A35: Installation/replacement of compressors | B35: MAX | C35: =Saving_measures[[#This Row],[Measure]] & "#" & Saving_measures[[#This Row],[Cost type]] -> Installation/replacement of compressors#MAX | D35: 317.6470588 | E35: =VLOOKUP(Saving_measures[[#This Row],[Measure detail]],Potential_of_measures!$C$1:$E$192,3,0) -> 0.6666666667 | F35: =Saving_measures[[#This Row],[Unit investments '[€/GJ']]]/Saving_measures[[#This Row],[Payback period w/o subsidy '[y']]] -> 21.17647059 | G35: =Saving_measures[[#This Row],[Energy saving potential '[TJ']]]*Saving_measures[[#This Row],[Unit investments '[€/GJ']]]*1000 -> 688799589.9 | H35: =Saving_measures[[#This Row],[Subsidy share '[%']]]*Saving_measures[[#This Row],[Investment costs '[€']]] -> 459199726.6 | I35: 15 | J35: =VLOOKUP(Saving_measures[[#This Row],[Measure detail]],Potential_of_measures!$C$1:$E$192,2,0) -> 2168.443154 | K35: 15 | L35: Electricity | M35: Industry | N35: =Saving_measures[[#This Row],[Energy saving potential '[TJ']]]*Saving_measures[[#This Row],[EF of CO2 '[kg/GJ']]] -> 618266.5119 | O35: =Saving_measures[[#This Row],[Energy saving potential '[TJ']]]*Saving_measures[[#This Row],[EF of CH4 '[g/GJ']]] -> 6180.062987 | P35: =Saving_measures[[#This Row],[Energy saving potential '[TJ']]]*Saving_measures[[#This Row],[EF of N2O '[g/GJ']]] -> 5095.841411 | Q35: =Saving_measures[[#This Row],[Energy saving potential '[TJ']]]*Saving_measures[[#This Row],[EF of CO2 eq '[kg/GJ']]] -> 619939.5742 | R35: =VLOOKUP(Saving_measures[[#This Row],[Energy carrier saved]] & "#" & Saving_measures[[#This Row],[The most similar sector]],Emiskoef,2,FALSE) -> 285.12 | S35: =VLOOKUP(Saving_measures[[#This Row],[Energy carrier saved]] & "#" & Saving_measures[[#This Row],[The most similar sector]],Emiskoef,3,FALSE) -> 2.85 | T35: =VLOOKUP(Saving_measures[[#This Row],[Energy carrier saved]] & "#" & Saving_measures[[#This Row],[The most similar sector]],Emiskoef,4,FALSE) -> 2.35 | U35: =Saving_measures[[#This Row],[EF of CO2 '[kg/GJ']]]+0.025*Saving_measures[[#This Row],[EF of CH4 '[g/GJ']]]+0.298*Saving_measures[[#This Row],[EF of N2O '[g/GJ']]] -> 285.89155 | V35: =1000*Saving_measures[[#This Row],[Unit investments '[€/GJ']]]/Saving_measures[[#This Row],[EF of CO2 eq '[kg/GJ']]] -> 1111.075367
A36: Installation/replacement of compressors | B36: MIN | C36: =Saving_measures[[#This Row],[Measure]] & "#" & Saving_measures[[#This Row],[Cost type]] -> Installation/replacement of compressors#MIN | D36: 88.23529412 | E36: =VLOOKUP(Saving_measures[[#This Row],[Measure detail]],Potential_of_measures!$C$1:$E$192,3,0) -> 0 | F36: =Saving_measures[[#This Row],[Unit investments '[€/GJ']]]/Saving_measures[[#This Row],[Payback period w/o subsidy '[y']]] -> 29.41176471 | G36: =Saving_measures[[#This Row],[Energy saving potential '[TJ']]]*Saving_measures[[#This Row],[Unit investments '[€/GJ']]]*1000 -> 8503698.641 | H36: =Saving_measures[[#This Row],[Subsidy share '[%']]]*Saving_measures[[#This Row],[Investment costs '[€']]] -> 0 | I36: 3 | J36: =VLOOKUP(Saving_measures[[#This Row],[Measure detail]],Potential_of_measures!$C$1:$E$192,2,0) -> 96.37525127 | K36: 15 | L36: Electricity | M36: Industry | N36: =Saving_measures[[#This Row],[Energy saving potential '[TJ']]]*Saving_measures[[#This Row],[EF of CO2 '[kg/GJ']]] -> 27478.51164 | O36: =Saving_measures[[#This Row],[Energy saving potential '[TJ']]]*Saving_measures[[#This Row],[EF of CH4 '[g/GJ']]] -> 274.6694661 | P36: =Saving_measures[[#This Row],[Energy saving potential '[TJ']]]*Saving_measures[[#This Row],[EF of N2O '[g/GJ']]] -> 226.4818405 | Q36: =Saving_measures[[#This Row],[Energy saving potential '[TJ']]]*Saving_measures[[#This Row],[EF of CO2 eq '[kg/GJ']]] -> 27552.86997 | R36: =VLOOKUP(Saving_measures[[#This Row],[Energy carrier saved]] & "#" & Saving_measures[[#This Row],[The most similar sector]],Emiskoef,2,FALSE) -> 285.12 | S36: =VLOOKUP(Saving_measures[[#This Row],[Energy carrier saved]] & "#" & Saving_measures[[#This Row],[The most similar sector]],Emiskoef,3,FALSE) -> 2.85 | T36: =VLOOKUP(Saving_measures[[#This Row],[Energy carrier saved]] & "#" & Saving_measures[[#This Row],[The most similar sector]],Emiskoef,4,FALSE) -> 2.35 | U36: =Saving_measures[[#This Row],[EF of CO2 '[kg/GJ']]]+0.025*Saving_measures[[#This Row],[EF of CH4 '[g/GJ']]]+0.298*Saving_measures[[#This Row],[EF of N2O '[g/GJ']]] -> 285.89155 | V36: =1000*Saving_measures[[#This Row],[Unit investments '[€/GJ']]]/Saving_measures[[#This Row],[EF of CO2 eq '[kg/GJ']]] -> 308.6320464
A37: Installation/replacement of compressors | B37: TYP | C37: =Saving_measures[[#This Row],[Measure]] & "#" & Saving_measures[[#This Row],[Cost type]] -> Installation/replacement of compressors#TYP | D37: 123.5294118 | E37: =VLOOKUP(Saving_measures[[#This Row],[Measure detail]],Potential_of_measures!$C$1:$E$192,3,0) -> 0.4444444444 | F37: =Saving_measures[[#This Row],[Unit investments '[€/GJ']]]/Saving_measures[[#This Row],[Payback period w/o subsidy '[y']]] -> 13.7254902 | G37: =Saving_measures[[#This Row],[Energy saving potential '[TJ']]]*Saving_measures[[#This Row],[Unit investments '[€/GJ']]]*1000 -> 315487219.6 | H37: =Saving_measures[[#This Row],[Subsidy share '[%']]]*Saving_measures[[#This Row],[Investment costs '[€']]] -> 140216542 | I37: 9 | J37: =VLOOKUP(Saving_measures[[#This Row],[Measure detail]],Potential_of_measures!$C$1:$E$192,2,0) -> 2553.944159 | K37: 15 | L37: Electricity | M37: Industry | N37: =Saving_measures[[#This Row],[Energy saving potential '[TJ']]]*Saving_measures[[#This Row],[EF of CO2 '[kg/GJ']]] -> 728180.5585 | O37: =Saving_measures[[#This Row],[Energy saving potential '[TJ']]]*Saving_measures[[#This Row],[EF of CH4 '[g/GJ']]] -> 7278.740852 | P37: =Saving_measures[[#This Row],[Energy saving potential '[TJ']]]*Saving_measures[[#This Row],[EF of N2O '[g/GJ']]] -> 6001.768773 | Q37: =Saving_measures[[#This Row],[Energy saving potential '[TJ']]]*Saving_measures[[#This Row],[EF of CO2 eq '[kg/GJ']]] -> 730151.0541 | R37: =VLOOKUP(Saving_measures[[#This Row],[Energy carrier saved]] & "#" & Saving_measures[[#This Row],[The most similar sector]],Emiskoef,2,FALSE) -> 285.12 | S37: =VLOOKUP(Saving_measures[[#This Row],[Energy carrier saved]] & "#" & Saving_measures[[#This Row],[The most similar sector]],Emiskoef,3,FALSE) -> 2.85 | T37: =VLOOKUP(Saving_measures[[#This Row],[Energy carrier saved]] & "#" & Saving_measures[[#This Row],[The most similar sector]],Emiskoef,4,FALSE) -> 2.35 | U37: =Saving_measures[[#This Row],[EF of CO2 '[kg/GJ']]]+0.025*Saving_measures[[#This Row],[EF of CH4 '[g/GJ']]]+0.298*Saving_measures[[#This Row],[EF of N2O '[g/GJ']]] -> 285.89155 | V37: =1000*Saving_measures[[#This Row],[Unit investments '[€/GJ']]]/Saving_measures[[#This Row],[EF of CO2 eq '[kg/GJ']]] -> 432.0848649
A38: Replacement of coal boiler with new coal boiler | B38: MAX | C38: =Saving_measures[[#This Row],[Measure]] & "#" & Saving_measures[[#This Row],[Cost type]] -> Replacement of coal boiler with new coal boiler#MAX | D38: 70.02691314 | E38: =VLOOKUP(Saving_measures[[#This Row],[Measure detail]],Potential_of_measures!$C$1:$E$192,3,0) -> 0.75 | F38: =Saving_measures[[#This Row],[Unit investments '[€/GJ']]]/Saving_measures[[#This Row],[Payback period w/o subsidy '[y']]] -> 3.501345657 | G38: =Saving_measures[[#This Row],[Energy saving potential '[TJ']]]*Saving_measures[[#This Row],[Unit investments '[€/GJ']]]*1000 -> 80946291.91 | H38: =Saving_measures[[#This Row],[Subsidy share '[%']]]*Saving_measures[[#This Row],[Investment costs '[€']]] -> 60709718.93 | I38: 20 | J38: =VLOOKUP(Saving_measures[[#This Row],[Measure detail]],Potential_of_measures!$C$1:$E$192,2,0) -> 1155.931174 | K38: 20 | L38: Coal | M38: Industry | N38: =Saving_measures[[#This Row],[Energy saving potential '[TJ']]]*Saving_measures[[#This Row],[EF of CO2 '[kg/GJ']]] -> 80590.4301 | O38: =Saving_measures[[#This Row],[Energy saving potential '[TJ']]]*Saving_measures[[#This Row],[EF of CH4 '[g/GJ']]] -> 1240.677889 | P38: =Saving_measures[[#This Row],[Energy saving potential '[TJ']]]*Saving_measures[[#This Row],[EF of N2O '[g/GJ']]] -> 327.1705847 | Q38: =Saving_measures[[#This Row],[Energy saving potential '[TJ']]]*Saving_measures[[#This Row],[EF of CO2 eq '[kg/GJ']]] -> 80718.94388 | R38: =VLOOKUP(Saving_measures[[#This Row],[Energy carrier saved]] & "#" & Saving_measures[[#This Row],[The most similar sector]],Emiskoef,2,FALSE) -> 69.71905588 | S38: =VLOOKUP(Saving_measures[[#This Row],[Energy carrier saved]] & "#" & Saving_measures[[#This Row],[The most similar sector]],Emiskoef,3,FALSE) -> 1.073314672 | T38: =VLOOKUP(Saving_measures[[#This Row],[Energy carrier saved]] & "#" & Saving_measures[[#This Row],[The most similar sector]],Emiskoef,4,FALSE) -> 0.2830363884 | U38: =Saving_measures[[#This Row],[EF of CO2 '[kg/GJ']]]+0.025*Saving_measures[[#This Row],[EF of CH4 '[g/GJ']]]+0.298*Saving_measures[[#This Row],[EF of N2O '[g/GJ']]] -> 69.83023359 | V38: =1000*Saving_measures[[#This Row],[Unit investments '[€/GJ']]]/Saving_measures[[#This Row],[EF of CO2 eq '[kg/GJ']]] -> 1002.816539
A39: Replacement of coal boilers with gas boilers | B39: MIN | C39: =Saving_measures[[#This Row],[Measure]] & "#" & Saving_measures[[#This Row],[Cost type]] -> Replacement of coal boilers with gas boilers#MIN | D39: 160.0358842 | E39: 0.9 | F39: =Saving_measures[[#This Row],[Unit investments '[€/GJ']]]/Saving_measures[[#This Row],[Payback period w/o subsidy '[y']]] -> 3.200717684 | G39: =Saving_measures[[#This Row],[Energy saving potential '[TJ']]]*Saving_measures[[#This Row],[Unit investments '[€/GJ']]]*1000 -> 83132539.58 | H39: 1907891.783 | I39: 50 | J39: =VLOOKUP(Saving_measures[[#This Row],[Measure detail]],Potential_of_measures!$C$1:$E$192,2,0) -> 519.4618695 | K39: 20 | L39: Coal | M39: Industry | N39: 28824.35015 | O39: 527.1164288 | P39: 53.13689618 | Q39: 28853.36286 | R39: 28824.35015 | S39: 527.1164288 | T39: 53.13689618 | U39: 28853.36286 | V39: 73563.07962
A40: Replacement of existing lighting with LED80 | B40: MAX | C40: =Saving_measures[[#This Row],[Measure]] & "#" & Saving_measures[[#This Row],[Cost type]] -> Replacement of existing lighting with LED80#MAX | D40: 24.70588235 | E40: =VLOOKUP(Saving_measures[[#This Row],[Measure detail]],Potential_of_measures!$C$1:$E$192,3,0) -> 0 | F40: =Saving_measures[[#This Row],[Unit investments '[€/GJ']]]/Saving_measures[[#This Row],[Payback period w/o subsidy '[y']]] -> 27.45098039 | G40: =Saving_measures[[#This Row],[Energy saving potential '[TJ']]]*Saving_measures[[#This Row],[Unit investments '[€/GJ']]]*1000 -> 16688389.56 | H40: =Saving_measures[[#This Row],[Subsidy share '[%']]]*Saving_measures[[#This Row],[Investment costs '[€']]] -> 0 | I40: 0.9 | J40: =VLOOKUP(Saving_measures[[#This Row],[Measure detail]],Potential_of_measures!$C$1:$E$192,2,0) -> 675.4824346 | K40: 8 | L40: Electricity | M40: Industry | N40: =Saving_measures[[#This Row],[Energy saving potential '[TJ']]]*Saving_measures[[#This Row],[EF of CO2 '[kg/GJ']]] -> 192593.5517 | O40: =Saving_measures[[#This Row],[Energy saving potential '[TJ']]]*Saving_measures[[#This Row],[EF of CH4 '[g/GJ']]] -> 1925.124939 | P40: =Saving_measures[[#This Row],[Energy saving potential '[TJ']]]*Saving_measures[[#This Row],[EF of N2O '[g/GJ']]] -> 1587.383721 | Q40: =Saving_measures[[#This Row],[Energy saving potential '[TJ']]]*Saving_measures[[#This Row],[EF of CO2 eq '[kg/GJ']]] -> 193114.7202 | R40: =VLOOKUP(Saving_measures[[#This Row],[Energy carrier saved]] & "#" & Saving_measures[[#This Row],[The most similar sector]],Emiskoef,2,FALSE) -> 285.12 | S40: =VLOOKUP(Saving_measures[[#This Row],[Energy carrier saved]] & "#" & Saving_measures[[#This Row],[The most similar sector]],Emiskoef,3,FALSE) -> 2.85 | T40: =VLOOKUP(Saving_measures[[#This Row],[Energy carrier saved]] & "#" & Saving_measures[[#This Row],[The most similar sector]],Emiskoef,4,FALSE) -> 2.35 | U40: =Saving_measures[[#This Row],[EF of CO2 '[kg/GJ']]]+0.025*Saving_measures[[#This Row],[EF of CH4 '[g/GJ']]]+0.298*Saving_measures[[#This Row],[EF of N2O '[g/GJ']]] -> 285.89155 | V40: =1000*Saving_measures[[#This Row],[Unit investments '[€/GJ']]]/Saving_measures[[#This Row],[EF of CO2 eq '[kg/GJ']]] -> 86.41697298
A41: Replacement of lighting LED80 with LED110 | B41: MAX | C41: =Saving_measures[[#This Row],[Measure]] & "#" & Saving_measures[[#This Row],[Cost type]] -> Replacement of lighting LED80 with LED110#MAX | D41: 247.0588235 | E41: =VLOOKUP(Saving_measures[[#This Row],[Measure detail]],Potential_of_measures!$C$1:$E$192,3,0) -> 0.6666666667 | F41: =Saving_measures[[#This Row],[Unit investments '[€/GJ']]]/Saving_measures[[#This Row],[Payback period w/o subsidy '[y']]] -> 16.47058824 | G41: =Saving_measures[[#This Row],[Energy saving potential '[TJ']]]*Saving_measures[[#This Row],[Unit investments '[€/GJ']]]*1000 -> 27464308.23 | H41: =Saving_measures[[#This Row],[Subsidy share '[%']]]*Saving_measures[[#This Row],[Investment costs '[€']]] -> 18309538.82 | I41: 15 | J41: =VLOOKUP(Saving_measures[[#This Row],[Measure detail]],Potential_of_measures!$C$1:$E$192,2,0) -> 111.1650571 | K41: 8 | L41: Electricity | M41: Industry | N41: =Saving_measures[[#This Row],[Energy saving potential '[TJ']]]*Saving_measures[[#This Row],[EF of CO2 '[kg/GJ']]] -> 31695.38108 | O41: =Saving_measures[[#This Row],[Energy saving potential '[TJ']]]*Saving_measures[[#This Row],[EF of CH4 '[g/GJ']]] -> 316.8204128 | P41: =Saving_measures[[#This Row],[Energy saving potential '[TJ']]]*Saving_measures[[#This Row],[EF of N2O '[g/GJ']]] -> 261.2378842 | Q41: =Saving_measures[[#This Row],[Energy saving potential '[TJ']]]*Saving_measures[[#This Row],[EF of CO2 eq '[kg/GJ']]] -> 31781.15048 | R41: =VLOOKUP(Saving_measures[[#This Row],[Energy carrier saved]] & "#" & Saving_measures[[#This Row],[The most similar sector]],Emiskoef,2,FALSE) -> 285.12 | S41: =VLOOKUP(Saving_measures[[#This Row],[Energy carrier saved]] & "#" & Saving_measures[[#This Row],[The most similar sector]],Emiskoef,3,FALSE) -> 2.85 | T41: =VLOOKUP(Saving_measures[[#This Row],[Energy carrier saved]] & "#" & Saving_measures[[#This Row],[The most similar sector]],Emiskoef,4,FALSE) -> 2.35 | U41: =Saving_measures[[#This Row],[EF of CO2 '[kg/GJ']]]+0.025*Saving_measures[[#This Row],[EF of CH4 '[g/GJ']]]+0.298*Saving_measures[[#This Row],[EF of N2O '[g/GJ']]] -> 285.89155 | V41: =1000*Saving_measures[[#This Row],[Unit investments '[€/GJ']]]/Saving_measures[[#This Row],[EF of CO2 eq '[kg/GJ']]] -> 864.1697298
A42: Replacement of lighting LED80 with LED110 | B42: MIN | C42: =Saving_measures[[#This Row],[Measure]] & "#" & Saving_measures[[#This Row],[Cost type]] -> Replacement of lighting LED80 with LED110#MIN | D42: 68.62745098 | E42: =VLOOKUP(Saving_measures[[#This Row],[Measure detail]],Potential_of_measures!$C$1:$E$192,3,0) -> 0 | F42: =Saving_measures[[#This Row],[Unit investments '[€/GJ']]]/Saving_measures[[#This Row],[Payback period w/o subsidy '[y']]] -> 13.7254902 | G42: =Saving_measures[[#This Row],[Energy saving potential '[TJ']]]*Saving_measures[[#This Row],[Unit investments '[€/GJ']]]*1000 -> 1907243.627 | H42: =Saving_measures[[#This Row],[Subsidy share '[%']]]*Saving_measures[[#This Row],[Investment costs '[€']]] -> 0 | I42: 5 | J42: =VLOOKUP(Saving_measures[[#This Row],[Measure detail]],Potential_of_measures!$C$1:$E$192,2,0) -> 27.79126428 | K42: 8 | L42: Electricity | M42: Industry | N42: =Saving_measures[[#This Row],[Energy saving potential '[TJ']]]*Saving_measures[[#This Row],[EF of CO2 '[kg/GJ']]] -> 7923.845271 | O42: =Saving_measures[[#This Row],[Energy saving potential '[TJ']]]*Saving_measures[[#This Row],[EF of CH4 '[g/GJ']]] -> 79.20510319 | P42: =Saving_measures[[#This Row],[Energy saving potential '[TJ']]]*Saving_measures[[#This Row],[EF of N2O '[g/GJ']]] -> 65.30947105 | Q42: =Saving_measures[[#This Row],[Energy saving potential '[TJ']]]*Saving_measures[[#This Row],[EF of CO2 eq '[kg/GJ']]] -> 7945.287621 | R42: =VLOOKUP(Saving_measures[[#This Row],[Energy carrier saved]] & "#" & Saving_measures[[#This Row],[The most similar sector]],Emiskoef,2,FALSE) -> 285.12 | S42: =VLOOKUP(Saving_measures[[#This Row],[Energy carrier saved]] & "#" & Saving_measures[[#This Row],[The most similar sector]],Emiskoef,3,FALSE) -> 2.85 | T42: =VLOOKUP(Saving_measures[[#This Row],[Energy carrier saved]] & "#" & Saving_measures[[#This Row],[The most similar sector]],Emiskoef,4,FALSE) -> 2.35 | U42: =Saving_measures[[#This Row],[EF of CO2 '[kg/GJ']]]+0.025*Saving_measures[[#This Row],[EF of CH4 '[g/GJ']]]+0.298*Saving_measures[[#This Row],[EF of N2O '[g/GJ']]] -> 285.89155 | V42: =1000*Saving_measures[[#This Row],[Unit investments '[€/GJ']]]/Saving_measures[[#This Row],[EF of CO2 eq '[kg/GJ']]] -> 240.0471472
A43: Replacement of lighting LED80 with LED110 | B43: TYP | C43: =Saving_measures[[#This Row],[Measure]] & "#" & Saving_measures[[#This Row],[Cost type]] -> Replacement of lighting LED80 with LED110#TYP | D43: 96.07843137 | E43: =VLOOKUP(Saving_measures[[#This Row],[Measure detail]],Potential_of_measures!$C$1:$E$192,3,0) -> 0.2857142857 | F43: =Saving_measures[[#This Row],[Unit investments '[€/GJ']]]/Saving_measures[[#This Row],[Payback period w/o subsidy '[y']]] -> 13.7254902 | G43: =Saving_measures[[#This Row],[Energy saving potential '[TJ']]]*Saving_measures[[#This Row],[Unit investments '[€/GJ']]]*1000 -> 40052116.16 | H43: =Saving_measures[[#This Row],[Subsidy share '[%']]]*Saving_measures[[#This Row],[Investment costs '[€']]] -> 11443461.76 | I43: 7 | J43: =VLOOKUP(Saving_measures[[#This Row],[Measure detail]],Potential_of_measures!$C$1:$E$192,2,0) -> 416.8689642 | K43: 8 | L43: Electricity | M43: Industry | N43: =Saving_measures[[#This Row],[Energy saving potential '[TJ']]]*Saving_measures[[#This Row],[EF of CO2 '[kg/GJ']]] -> 118857.6791 | O43: =Saving_measures[[#This Row],[Energy saving potential '[TJ']]]*Saving_measures[[#This Row],[EF of CH4 '[g/GJ']]] -> 1188.076548 | P43: =Saving_measures[[#This Row],[Energy saving potential '[TJ']]]*Saving_measures[[#This Row],[EF of N2O '[g/GJ']]] -> 979.6420658 | Q43: =Saving_measures[[#This Row],[Energy saving potential '[TJ']]]*Saving_measures[[#This Row],[EF of CO2 eq '[kg/GJ']]] -> 119179.3143 | R43: =VLOOKUP(Saving_measures[[#This Row],[Energy carrier saved]] & "#" & Saving_measures[[#This Row],[The most similar sector]],Emiskoef,2,FALSE) -> 285.12 | S43: =VLOOKUP(Saving_measures[[#This Row],[Energy carrier saved]] & "#" & Saving_measures[[#This Row],[The most similar sector]],Emiskoef,3,FALSE) -> 2.85 | T43: =VLOOKUP(Saving_measures[[#This Row],[Energy carrier saved]] & "#" & Saving_measures[[#This Row],[The most similar sector]],Emiskoef,4,FALSE) -> 2.35 | U43: =Saving_measures[[#This Row],[EF of CO2 '[kg/GJ']]]+0.025*Saving_measures[[#This Row],[EF of CH4 '[g/GJ']]]+0.298*Saving_measures[[#This Row],[EF of N2O '[g/GJ']]] -> 285.89155 | V43: =1000*Saving_measures[[#This Row],[Unit investments '[€/GJ']]]/Saving_measures[[#This Row],[EF of CO2 eq '[kg/GJ']]] -> 336.0660061
A44: Replacement of coal boiler with biomass boiler | B44: TYP | C44: =Saving_measures[[#This Row],[Measure]] & "#" & Saving_measures[[#This Row],[Cost type]] -> Replacement of coal boiler with biomass boiler#TYP | E44: =VLOOKUP(Saving_measures[[#This Row],[Measure detail]],Potential_of_measures!$C$1:$E$192,3,0) -> 1.9 | F44: =Saving_measures[[#This Row],[Unit investments '[€/GJ']]]/Saving_measures[[#This Row],[Payback period w/o subsidy '[y']]] ->  | G44: =Saving_measures[[#This Row],[Energy saving potential '[TJ']]]*Saving_measures[[#This Row],[Unit investments '[€/GJ']]]*1000 -> 0 | H44: =Saving_measures[[#This Row],[Subsidy share '[%']]]*Saving_measures[[#This Row],[Investment costs '[€']]] -> 0 | J44: =VLOOKUP(Saving_measures[[#This Row],[Measure detail]],Potential_of_measures!$C$1:$E$192,2,0) -> 520.4618695 | N44: =Saving_measures[[#This Row],[Energy saving potential '[TJ']]]*Saving_measures[[#This Row],[EF of CO2 '[kg/GJ']]] ->  | O44: =Saving_measures[[#This Row],[Energy saving potential '[TJ']]]*Saving_measures[[#This Row],[EF of CH4 '[g/GJ']]] ->  | P44: =Saving_measures[[#This Row],[Energy saving potential '[TJ']]]*Saving_measures[[#This Row],[EF of N2O '[g/GJ']]] ->  | Q44: =Saving_measures[[#This Row],[Energy saving potential '[TJ']]]*Saving_measures[[#This Row],[EF of CO2 eq '[kg/GJ']]] ->  | R44: =VLOOKUP(Saving_measures[[#This Row],[Energy carrier saved]] & "#" & Saving_measures[[#This Row],[The most similar sector]],Emiskoef,2,FALSE) ->  | S44: =VLOOKUP(Saving_measures[[#This Row],[Energy carrier saved]] & "#" & Saving_measures[[#This Row],[The most similar sector]],Emiskoef,3,FALSE) ->  | T44: =VLOOKUP(Saving_measures[[#This Row],[Energy carrier saved]] & "#" & Saving_measures[[#This Row],[The most similar sector]],Emiskoef,4,FALSE) ->  | U44: =Saving_measures[[#This Row],[EF of CO2 '[kg/GJ']]]+0.025*Saving_measures[[#This Row],[EF of CH4 '[g/GJ']]]+0.298*Saving_measures[[#This Row],[EF of N2O '[g/GJ']]] ->  | V44: =1000*Saving_measures[[#This Row],[Unit investments '[€/GJ']]]/Saving_measures[[#This Row],[EF of CO2 eq '[kg/GJ']]] -> 
A45: Thermal insulation of technologies | B45: MAX | C45: =Saving_measures[[#This Row],[Measure]] & "#" & Saving_measures[[#This Row],[Cost type]] -> Thermal insulation of technologies#MAX | D45: 182.9930258 | E45: =VLOOKUP(Saving_measures[[#This Row],[Measure detail]],Potential_of_measures!$C$1:$E$192,3,0) -> 0.5 | F45: =Saving_measures[[#This Row],[Unit investments '[€/GJ']]]/Saving_measures[[#This Row],[Payback period w/o subsidy '[y']]] -> 18.29930258 | G45: =Saving_measures[[#This Row],[Energy saving potential '[TJ']]]*Saving_measures[[#This Row],[Unit investments '[€/GJ']]]*1000 -> 477426805.9 | H45: =Saving_measures[[#This Row],[Subsidy share '[%']]]*Saving_measures[[#This Row],[Investment costs '[€']]] -> 238713402.9 | I45: 10 | J45: =VLOOKUP(Saving_measures[[#This Row],[Measure detail]],Potential_of_measures!$C$1:$E$192,2,0) -> 2608.989078 | K45: 20 | L45: Fuels and heat | M45: Industry | N45: =Saving_measures[[#This Row],[Energy saving potential '[TJ']]]*Saving_measures[[#This Row],[EF of CO2 '[kg/GJ']]] -> 192668.9646 | O45: =Saving_measures[[#This Row],[Energy saving potential '[TJ']]]*Saving_measures[[#This Row],[EF of CH4 '[g/GJ']]] -> 7638.74948 | P45: =Saving_measures[[#This Row],[Energy saving potential '[TJ']]]*Saving_measures[[#This Row],[EF of N2O '[g/GJ']]] -> 1518.339008 | Q45: =Saving_measures[[#This Row],[Energy saving potential '[TJ']]]*Saving_measures[[#This Row],[EF of CO2 eq '[kg/GJ']]] -> 193312.3983 | R45: =VLOOKUP(Saving_measures[[#This Row],[Energy carrier saved]] & "#" & Saving_measures[[#This Row],[The most similar sector]],Emiskoef,2,FALSE) -> 73.84812998 | S45: =VLOOKUP(Saving_measures[[#This Row],[Energy carrier saved]] & "#" & Saving_measures[[#This Row],[The most similar sector]],Emiskoef,3,FALSE) -> 2.927857975 | T45: =VLOOKUP(Saving_measures[[#This Row],[Energy carrier saved]] & "#" & Saving_measures[[#This Row],[The most similar sector]],Emiskoef,4,FALSE) -> 0.5819644937 | U45: =Saving_measures[[#This Row],[EF of CO2 '[kg/GJ']]]+0.025*Saving_measures[[#This Row],[EF of CH4 '[g/GJ']]]+0.298*Saving_measures[[#This Row],[EF of N2O '[g/GJ']]] -> 74.09475185 | V45: =1000*Saving_measures[[#This Row],[Unit investments '[€/GJ']]]/Saving_measures[[#This Row],[EF of CO2 eq '[kg/GJ']]] -> 2469.716428
A46: Thermal insulation of technologies | B46: MIN | C46: =Saving_measures[[#This Row],[Measure]] & "#" & Saving_measures[[#This Row],[Cost type]] -> Thermal insulation of technologies#MIN | D46: 57.38494541 | E46: =VLOOKUP(Saving_measures[[#This Row],[Measure detail]],Potential_of_measures!$C$1:$E$192,3,0) -> 0 | F46: =Saving_measures[[#This Row],[Unit investments '[€/GJ']]]/Saving_measures[[#This Row],[Payback period w/o subsidy '[y']]] -> 19.12831514 | G46: =Saving_measures[[#This Row],[Energy saving potential '[TJ']]]*Saving_measures[[#This Row],[Unit investments '[€/GJ']]]*1000 -> 13610608.71 | H46: =Saving_measures[[#This Row],[Subsidy share '[%']]]*Saving_measures[[#This Row],[Investment costs '[€']]] -> 0 | I46: 3 | J46: =VLOOKUP(Saving_measures[[#This Row],[Measure detail]],Potential_of_measures!$C$1:$E$192,2,0) -> 237.1808253 | K46: 20 | L46: Fuels and heat | M46: Industry | N46: =Saving_measures[[#This Row],[Energy saving potential '[TJ']]]*Saving_measures[[#This Row],[EF of CO2 '[kg/GJ']]] -> 17515.36042 | O46: =Saving_measures[[#This Row],[Energy saving potential '[TJ']]]*Saving_measures[[#This Row],[EF of CH4 '[g/GJ']]] -> 694.4317709 | P46: =Saving_measures[[#This Row],[Energy saving potential '[TJ']]]*Saving_measures[[#This Row],[EF of N2O '[g/GJ']]] -> 138.0308189 | Q46: =Saving_measures[[#This Row],[Energy saving potential '[TJ']]]*Saving_measures[[#This Row],[EF of CO2 eq '[kg/GJ']]] -> 17573.85439 | R46: =VLOOKUP(Saving_measures[[#This Row],[Energy carrier saved]] & "#" & Saving_measures[[#This Row],[The most similar sector]],Emiskoef,2,FALSE) -> 73.84812998 | S46: =VLOOKUP(Saving_measures[[#This Row],[Energy carrier saved]] & "#" & Saving_measures[[#This Row],[The most similar sector]],Emiskoef,3,FALSE) -> 2.927857975 | T46: =VLOOKUP(Saving_measures[[#This Row],[Energy carrier saved]] & "#" & Saving_measures[[#This Row],[The most similar sector]],Emiskoef,4,FALSE) -> 0.5819644937 | U46: =Saving_measures[[#This Row],[EF of CO2 '[kg/GJ']]]+0.025*Saving_measures[[#This Row],[EF of CH4 '[g/GJ']]]+0.298*Saving_measures[[#This Row],[EF of N2O '[g/GJ']]] -> 74.09475185 | V46: =1000*Saving_measures[[#This Row],[Unit investments '[€/GJ']]]/Saving_measures[[#This Row],[EF of CO2 eq '[kg/GJ']]] -> 774.4805668
A47: Thermal insulation of technologies | B47: TYP | C47: =Saving_measures[[#This Row],[Measure]] & "#" & Saving_measures[[#This Row],[Cost type]] -> Thermal insulation of technologies#TYP | D47: 82.35294118 | E47: =VLOOKUP(Saving_measures[[#This Row],[Measure detail]],Potential_of_measures!$C$1:$E$192,3,0) -> 0.1666666667 | F47: =Saving_measures[[#This Row],[Unit investments '[€/GJ']]]/Saving_measures[[#This Row],[Payback period w/o subsidy '[y']]] -> 13.7254902 | G47: =Saving_measures[[#This Row],[Energy saving potential '[TJ']]]*Saving_measures[[#This Row],[Unit investments '[€/GJ']]]*1000 -> 156260308.4 | H47: =Saving_measures[[#This Row],[Subsidy share '[%']]]*Saving_measures[[#This Row],[Investment costs '[€']]] -> 26043384.74 | I47: 6 | J47: =VLOOKUP(Saving_measures[[#This Row],[Measure detail]],Potential_of_measures!$C$1:$E$192,2,0) -> 1897.446603 | K47: 20 | L47: Fuels and heat | M47: Industry | N47: =Saving_measures[[#This Row],[Energy saving potential '[TJ']]]*Saving_measures[[#This Row],[EF of CO2 '[kg/GJ']]] -> 140122.8833 | O47: =Saving_measures[[#This Row],[Energy saving potential '[TJ']]]*Saving_measures[[#This Row],[EF of CH4 '[g/GJ']]] -> 5555.454167 | P47: =Saving_measures[[#This Row],[Energy saving potential '[TJ']]]*Saving_measures[[#This Row],[EF of N2O '[g/GJ']]] -> 1104.246551 | Q47: =Saving_measures[[#This Row],[Energy saving potential '[TJ']]]*Saving_measures[[#This Row],[EF of CO2 eq '[kg/GJ']]] -> 140590.8352 | R47: =VLOOKUP(Saving_measures[[#This Row],[Energy carrier saved]] & "#" & Saving_measures[[#This Row],[The most similar sector]],Emiskoef,2,FALSE) -> 73.84812998 | S47: =VLOOKUP(Saving_measures[[#This Row],[Energy carrier saved]] & "#" & Saving_measures[[#This Row],[The most similar sector]],Emiskoef,3,FALSE) -> 2.927857975 | T47: =VLOOKUP(Saving_measures[[#This Row],[Energy carrier saved]] & "#" & Saving_measures[[#This Row],[The most similar sector]],Emiskoef,4,FALSE) -> 0.5819644937 | U47: =Saving_measures[[#This Row],[EF of CO2 '[kg/GJ']]]+0.025*Saving_measures[[#This Row],[EF of CH4 '[g/GJ']]]+0.298*Saving_measures[[#This Row],[EF of N2O '[g/GJ']]] -> 74.09475185 | V47: =1000*Saving_measures[[#This Row],[Unit investments '[€/GJ']]]/Saving_measures[[#This Row],[EF of CO2 eq '[kg/GJ']]] -> 1111.454443
A48: Transformers replacement | B48: MAX | C48: =Saving_measures[[#This Row],[Measure]] & "#" & Saving_measures[[#This Row],[Cost type]] -> Transformers replacement#MAX | D48: 423.5294118 | E48: =VLOOKUP(Saving_measures[[#This Row],[Measure detail]],Potential_of_measures!$C$1:$E$192,3,0) -> 0.6428571429 | F48: =Saving_measures[[#This Row],[Unit investments '[€/GJ']]]/Saving_measures[[#This Row],[Payback period w/o subsidy '[y']]] -> 30.25210084 | G48: =Saving_measures[[#This Row],[Energy saving potential '[TJ']]]*Saving_measures[[#This Row],[Unit investments '[€/GJ']]]*1000 -> 90228718.21 | H48: =Saving_measures[[#This Row],[Subsidy share '[%']]]*Saving_measures[[#This Row],[Investment costs '[€']]] -> 58004175.99 | I48: 14 | J48: =VLOOKUP(Saving_measures[[#This Row],[Measure detail]],Potential_of_measures!$C$1:$E$192,2,0) -> 213.0400291 | K48: 20 | L48: Electricity | M48: Energy | N48: =Saving_measures[[#This Row],[Energy saving potential '[TJ']]]*Saving_measures[[#This Row],[EF of CO2 '[kg/GJ']]] -> 60741.9731 | O48: =Saving_measures[[#This Row],[Energy saving potential '[TJ']]]*Saving_measures[[#This Row],[EF of CH4 '[g/GJ']]] -> 607.164083 | P48: =Saving_measures[[#This Row],[Energy saving potential '[TJ']]]*Saving_measures[[#This Row],[EF of N2O '[g/GJ']]] -> 500.6440684 | Q48: =Saving_measures[[#This Row],[Energy saving potential '[TJ']]]*Saving_measures[[#This Row],[EF of CO2 eq '[kg/GJ']]] -> 60906.34414 | R48: =VLOOKUP(Saving_measures[[#This Row],[Energy carrier saved]] & "#" & Saving_measures[[#This Row],[The most similar sector]],Emiskoef,2,FALSE) -> 285.12 | S48: =VLOOKUP(Saving_measures[[#This Row],[Energy carrier saved]] & "#" & Saving_measures[[#This Row],[The most similar sector]],Emiskoef,3,FALSE) -> 2.85 | T48: =VLOOKUP(Saving_measures[[#This Row],[Energy carrier saved]] & "#" & Saving_measures[[#This Row],[The most similar sector]],Emiskoef,4,FALSE) -> 2.35 | U48: =Saving_measures[[#This Row],[EF of CO2 '[kg/GJ']]]+0.025*Saving_measures[[#This Row],[EF of CH4 '[g/GJ']]]+0.298*Saving_measures[[#This Row],[EF of N2O '[g/GJ']]] -> 285.89155 | V48: =1000*Saving_measures[[#This Row],[Unit investments '[€/GJ']]]/Saving_measures[[#This Row],[EF of CO2 eq '[kg/GJ']]] -> 1481.433823
A49: Transformers replacement | B49: MIN | C49: =Saving_measures[[#This Row],[Measure]] & "#" & Saving_measures[[#This Row],[Cost type]] -> Transformers replacement#MIN | D49: 117.6470588 | E49: =VLOOKUP(Saving_measures[[#This Row],[Measure detail]],Potential_of_measures!$C$1:$E$192,3,0) -> 0.1666666667 | F49: =Saving_measures[[#This Row],[Unit investments '[€/GJ']]]/Saving_measures[[#This Row],[Payback period w/o subsidy '[y']]] -> 19.60784314 | G49: =Saving_measures[[#This Row],[Energy saving potential '[TJ']]]*Saving_measures[[#This Row],[Unit investments '[€/GJ']]]*1000 -> 25063532.84 | H49: =Saving_measures[[#This Row],[Subsidy share '[%']]]*Saving_measures[[#This Row],[Investment costs '[€']]] -> 4177255.473 | I49: 6 | J49: =VLOOKUP(Saving_measures[[#This Row],[Measure detail]],Potential_of_measures!$C$1:$E$192,2,0) -> 213.0400291 | K49: 20 | L49: Electricity | M49: Energy | N49: =Saving_measures[[#This Row],[Energy saving potential '[TJ']]]*Saving_measures[[#This Row],[EF of CO2 '[kg/GJ']]] -> 60741.9731 | O49: =Saving_measures[[#This Row],[Energy saving potential '[TJ']]]*Saving_measures[[#This Row],[EF of CH4 '[g/GJ']]] -> 607.164083 | P49: =Saving_measures[[#This Row],[Energy saving potential '[TJ']]]*Saving_measures[[#This Row],[EF of N2O '[g/GJ']]] -> 500.6440684 | Q49: =Saving_measures[[#This Row],[Energy saving potential '[TJ']]]*Saving_measures[[#This Row],[EF of CO2 eq '[kg/GJ']]] -> 60906.34414 | R49: =VLOOKUP(Saving_measures[[#This Row],[Energy carrier saved]] & "#" & Saving_measures[[#This Row],[The most similar sector]],Emiskoef,2,FALSE) -> 285.12 | S49: =VLOOKUP(Saving_measures[[#This Row],[Energy carrier saved]] & "#" & Saving_measures[[#This Row],[The most similar sector]],Emiskoef,3,FALSE) -> 2.85 | T49: =VLOOKUP(Saving_measures[[#This Row],[Energy carrier saved]] & "#" & Saving_measures[[#This Row],[The most similar sector]],Emiskoef,4,FALSE) -> 2.35 | U49: =Saving_measures[[#This Row],[EF of CO2 '[kg/GJ']]]+0.025*Saving_measures[[#This Row],[EF of CH4 '[g/GJ']]]+0.298*Saving_measures[[#This Row],[EF of N2O '[g/GJ']]] -> 285.89155 | V49: =1000*Saving_measures[[#This Row],[Unit investments '[€/GJ']]]/Saving_measures[[#This Row],[EF of CO2 eq '[kg/GJ']]] -> 411.5093952
A50: Transformers replacement | B50: TYP | C50: =Saving_measures[[#This Row],[Measure]] & "#" & Saving_measures[[#This Row],[Cost type]] -> Transformers replacement#TYP | D50: 164.7058824 | E50: =VLOOKUP(Saving_measures[[#This Row],[Measure detail]],Potential_of_measures!$C$1:$E$192,3,0) -> 0.5833333333 | F50: =Saving_measures[[#This Row],[Unit investments '[€/GJ']]]/Saving_measures[[#This Row],[Payback period w/o subsidy '[y']]] -> 13.7254902 | G50: =Saving_measures[[#This Row],[Energy saving potential '[TJ']]]*Saving_measures[[#This Row],[Unit investments '[€/GJ']]]*1000 -> 163748414.5 | H50: =Saving_measures[[#This Row],[Subsidy share '[%']]]*Saving_measures[[#This Row],[Investment costs '[€']]] -> 95519908.48 | I50: 12 | J50: =VLOOKUP(Saving_measures[[#This Row],[Measure detail]],Potential_of_measures!$C$1:$E$192,2,0) -> 994.1868025 | K50: 20 | L50: Electricity | M50: Energy | N50: =Saving_measures[[#This Row],[Energy saving potential '[TJ']]]*Saving_measures[[#This Row],[EF of CO2 '[kg/GJ']]] -> 283462.5411 | O50: =Saving_measures[[#This Row],[Energy saving potential '[TJ']]]*Saving_measures[[#This Row],[EF of CH4 '[g/GJ']]] -> 2833.432387 | P50: =Saving_measures[[#This Row],[Energy saving potential '[TJ']]]*Saving_measures[[#This Row],[EF of N2O '[g/GJ']]] -> 2336.338986 | Q50: =Saving_measures[[#This Row],[Energy saving potential '[TJ']]]*Saving_measures[[#This Row],[EF of CO2 eq '[kg/GJ']]] -> 284229.606 | R50: =VLOOKUP(Saving_measures[[#This Row],[Energy carrier saved]] & "#" & Saving_measures[[#This Row],[The most similar sector]],Emiskoef,2,FALSE) -> 285.12 | S50: =VLOOKUP(Saving_measures[[#This Row],[Energy carrier saved]] & "#" & Saving_measures[[#This Row],[The most similar sector]],Emiskoef,3,FALSE) -> 2.85 | T50: =VLOOKUP(Saving_measures[[#This Row],[Energy carrier saved]] & "#" & Saving_measures[[#This Row],[The most similar sector]],Emiskoef,4,FALSE) -> 2.35 | U50: =Saving_measures[[#This Row],[EF of CO2 '[kg/GJ']]]+0.025*Saving_measures[[#This Row],[EF of CH4 '[g/GJ']]]+0.298*Saving_measures[[#This Row],[EF of N2O '[g/GJ']]] -> 285.89155 | V50: =1000*Saving_measures[[#This Row],[Unit investments '[€/GJ']]]/Saving_measures[[#This Row],[EF of CO2 eq '[kg/GJ']]] -> 576.1131532
A51: Waste heat utilisation | B51: MAX | C51: =Saving_measures[[#This Row],[Measure]] & "#" & Saving_measures[[#This Row],[Cost type]] -> Waste heat utilisation#MAX | D51: 69.84545802 | E51: =VLOOKUP(Saving_measures[[#This Row],[Measure detail]],Potential_of_measures!$C$1:$E$192,3,0) -> 0.5833333333 | F51: =Saving_measures[[#This Row],[Unit investments '[€/GJ']]]/Saving_measures[[#This Row],[Payback period w/o subsidy '[y']]] -> 5.820454835 | G51: =Saving_measures[[#This Row],[Energy saving potential '[TJ']]]*Saving_measures[[#This Row],[Unit investments '[€/GJ']]]*1000 -> 103832098 | H51: =Saving_measures[[#This Row],[Subsidy share '[%']]]*Saving_measures[[#This Row],[Investment costs '[€']]] -> 60568723.83 | I51: 12 | J51: =VLOOKUP(Saving_measures[[#This Row],[Measure detail]],Potential_of_measures!$C$1:$E$192,2,0) -> 1486.597711 | K51: 20 | L51: Electricity | M51: Industry | N51: =Saving_measures[[#This Row],[Energy saving potential '[TJ']]]*Saving_measures[[#This Row],[EF of CO2 '[kg/GJ']]] -> 423858.7393 | O51: =Saving_measures[[#This Row],[Energy saving potential '[TJ']]]*Saving_measures[[#This Row],[EF of CH4 '[g/GJ']]] -> 4236.803476 | P51: =Saving_measures[[#This Row],[Energy saving potential '[TJ']]]*Saving_measures[[#This Row],[EF of N2O '[g/GJ']]] -> 3493.50462 | Q51: =Saving_measures[[#This Row],[Energy saving potential '[TJ']]]*Saving_measures[[#This Row],[EF of CO2 eq '[kg/GJ']]] -> 425005.7238 | R51: =VLOOKUP(Saving_measures[[#This Row],[Energy carrier saved]] & "#" & Saving_measures[[#This Row],[The most similar sector]],Emiskoef,2,FALSE) -> 285.12 | S51: =VLOOKUP(Saving_measures[[#This Row],[Energy carrier saved]] & "#" & Saving_measures[[#This Row],[The most similar sector]],Emiskoef,3,FALSE) -> 2.85 | T51: =VLOOKUP(Saving_measures[[#This Row],[Energy carrier saved]] & "#" & Saving_measures[[#This Row],[The most similar sector]],Emiskoef,4,FALSE) -> 2.35 | U51: =Saving_measures[[#This Row],[EF of CO2 '[kg/GJ']]]+0.025*Saving_measures[[#This Row],[EF of CH4 '[g/GJ']]]+0.298*Saving_measures[[#This Row],[EF of N2O '[g/GJ']]] -> 285.89155 | V51: =1000*Saving_measures[[#This Row],[Unit investments '[€/GJ']]]/Saving_measures[[#This Row],[EF of CO2 eq '[kg/GJ']]] -> 244.3075286
A52: Waste heat utilisation | B52: MIN | C52: =Saving_measures[[#This Row],[Measure]] & "#" & Saving_measures[[#This Row],[Cost type]] -> Waste heat utilisation#MIN | D52: 29.71145534 | E52: =VLOOKUP(Saving_measures[[#This Row],[Measure detail]],Potential_of_measures!$C$1:$E$192,3,0) -> 0 | F52: =Saving_measures[[#This Row],[Unit investments '[€/GJ']]]/Saving_measures[[#This Row],[Payback period w/o subsidy '[y']]] -> 29.71145534 | G52: =Saving_measures[[#This Row],[Energy saving potential '[TJ']]]*Saving_measures[[#This Row],[Unit investments '[€/GJ']]]*1000 -> 1963065.844 | H52: =Saving_measures[[#This Row],[Subsidy share '[%']]]*Saving_measures[[#This Row],[Investment costs '[€']]] -> 0 | I52: 1 | J52: =VLOOKUP(Saving_measures[[#This Row],[Measure detail]],Potential_of_measures!$C$1:$E$192,2,0) -> 66.07100937 | K52: 20 | L52: Fuels and heat | M52: Industry | N52: =Saving_measures[[#This Row],[Energy saving potential '[TJ']]]*Saving_measures[[#This Row],[EF of CO2 '[kg/GJ']]] -> 4879.220488 | O52: =Saving_measures[[#This Row],[Energy saving potential '[TJ']]]*Saving_measures[[#This Row],[EF of CH4 '[g/GJ']]] -> 193.4465317 | P52: =Saving_measures[[#This Row],[Energy saving potential '[TJ']]]*Saving_measures[[#This Row],[EF of N2O '[g/GJ']]] -> 38.45098152 | Q52: =Saving_measures[[#This Row],[Energy saving potential '[TJ']]]*Saving_measures[[#This Row],[EF of CO2 eq '[kg/GJ']]] -> 4895.515043 | R52: =VLOOKUP(Saving_measures[[#This Row],[Energy carrier saved]] & "#" & Saving_measures[[#This Row],[The most similar sector]],Emiskoef,2,FALSE) -> 73.84812998 | S52: =VLOOKUP(Saving_measures[[#This Row],[Energy carrier saved]] & "#" & Saving_measures[[#This Row],[The most similar sector]],Emiskoef,3,FALSE) -> 2.927857975 | T52: =VLOOKUP(Saving_measures[[#This Row],[Energy carrier saved]] & "#" & Saving_measures[[#This Row],[The most similar sector]],Emiskoef,4,FALSE) -> 0.5819644937 | U52: =Saving_measures[[#This Row],[EF of CO2 '[kg/GJ']]]+0.025*Saving_measures[[#This Row],[EF of CH4 '[g/GJ']]]+0.298*Saving_measures[[#This Row],[EF of N2O '[g/GJ']]] -> 74.09475185 | V52: =1000*Saving_measures[[#This Row],[Unit investments '[€/GJ']]]/Saving_measures[[#This Row],[EF of CO2 eq '[kg/GJ']]] -> 400.99271
A53: Waste heat utilisation | B53: TYP | C53: =Saving_measures[[#This Row],[Measure]] & "#" & Saving_measures[[#This Row],[Cost type]] -> Waste heat utilisation#TYP | D53: 49.27165734 | E53: =VLOOKUP(Saving_measures[[#This Row],[Measure detail]],Potential_of_measures!$C$1:$E$192,3,0) -> 0 | F53: =Saving_measures[[#This Row],[Unit investments '[€/GJ']]]/Saving_measures[[#This Row],[Payback period w/o subsidy '[y']]] -> 9.854331468 | G53: =Saving_measures[[#This Row],[Energy saving potential '[TJ']]]*Saving_measures[[#This Row],[Unit investments '[€/GJ']]]*1000 -> 86268845.55 | H53: =Saving_measures[[#This Row],[Subsidy share '[%']]]*Saving_measures[[#This Row],[Investment costs '[€']]] -> 0 | I53: 5 | J53: =VLOOKUP(Saving_measures[[#This Row],[Measure detail]],Potential_of_measures!$C$1:$E$192,2,0) -> 1750.881748 | K53: 20 | L53: Electricity | M53: Industry | N53: =Saving_measures[[#This Row],[Energy saving potential '[TJ']]]*Saving_measures[[#This Row],[EF of CO2 '[kg/GJ']]] -> 499211.4041 | O53: =Saving_measures[[#This Row],[Energy saving potential '[TJ']]]*Saving_measures[[#This Row],[EF of CH4 '[g/GJ']]] -> 4990.012983 | P53: =Saving_measures[[#This Row],[Energy saving potential '[TJ']]]*Saving_measures[[#This Row],[EF of N2O '[g/GJ']]] -> 4114.572108 | Q53: =Saving_measures[[#This Row],[Energy saving potential '[TJ']]]*Saving_measures[[#This Row],[EF of CO2 eq '[kg/GJ']]] -> 500562.2969 | R53: =VLOOKUP(Saving_measures[[#This Row],[Energy carrier saved]] & "#" & Saving_measures[[#This Row],[The most similar sector]],Emiskoef,2,FALSE) -> 285.12 | S53: =VLOOKUP(Saving_measures[[#This Row],[Energy carrier saved]] & "#" & Saving_measures[[#This Row],[The most similar sector]],Emiskoef,3,FALSE) -> 2.85 | T53: =VLOOKUP(Saving_measures[[#This Row],[Energy carrier saved]] & "#" & Saving_measures[[#This Row],[The most similar sector]],Emiskoef,4,FALSE) -> 2.35 | U53: =Saving_measures[[#This Row],[EF of CO2 '[kg/GJ']]]+0.025*Saving_measures[[#This Row],[EF of CH4 '[g/GJ']]]+0.298*Saving_measures[[#This Row],[EF of N2O '[g/GJ']]] -> 285.89155 | V53: =1000*Saving_measures[[#This Row],[Unit investments '[€/GJ']]]/Saving_measures[[#This Row],[EF of CO2 eq '[kg/GJ']]] -> 172.3438742

Sheet Potential_of_measures (hidden)
A1: Buildings insulation | B1: MAX | C1: =A1 & "#" & B1 -> Buildings insulation#MAX | D1: 2166.899433 | E1: 0.875
A2: Buildings insulation | B2: MIN | C2: Buildings insulation#MIN | D2: 2166.899433 | E2: 0.5833333333
A3: Buildings insulation | B3: TYP | C3: Buildings insulation#TYP | D3: 4333.798865 | E3: 0.75
A4: Contol of circulation pumps | B4: MAX | C4: Contol of circulation pumps#MAX | D4: 15.71894265 | E4: 0.2857142857
A5: Contol of circulation pumps | B5: MIN | C5: Contol of circulation pumps#MIN | D5: 15.71894265 | E5: 0
A6: Contol of circulation pumps | B6: TYP | C6: Contol of circulation pumps#TYP | D6: 31.43788531 | E6: 0
A7: Decrease of losses in heat distribution | B7: MAX | C7: Decrease of losses in heat distribution#MAX | D7: 304.6877644 | E7: 0.9166666667
A8: Decrease of losses in heat distribution | B8: MIN | C8: Decrease of losses in heat distribution#MIN | D8: 304.6877644 | E8: 0.6666666667
A9: Decrease of losses in heat distribution | B9: TYP | C9: Decrease of losses in heat distribution#TYP | D9: 914.0632931 | E9: 0.8888888889
A10: Energy management | B10: MAX | C10: Energy management#MAX | D10: 436.0437372 | E10: 0.375
A11: Energy management | B11: MIN | C11: Energy management#MIN | D11: 48.44930414 | E11: 0
A12: Energy management | B12: TYP | C12: Energy management#TYP | D12: 484.4930414 | E12: 0
A13: Change of technological processes | B13: MAX | C13: Change of technological processes#MAX | D13: 1201.280189 | E13: 0.8333333333
A14: Change of technological processes | B14: MIN | C14: Change of technological processes#MIN | D14: 171.6114556 | E14: 0
A15: Change of technological processes | B15: TYP | C15: Change of technological processes#TYP | D15: 2059.337467 | E15: 0.375
A16: Installation flue gas pre-heaters to boilers | B16: MAX | C16: Installation flue gas pre-heaters to boilers#MAX | D16: 298.7294243 | E16: 0
A17: Installation flue gas pre-heaters to boilers | B17: MIN | C17: Installation flue gas pre-heaters to boilers#MIN | D17: 149.3647122 | E17: 0
A18: Installation flue gas pre-heaters to boilers | B18: TYP | C18: Installation flue gas pre-heaters to boilers#TYP | D18: 547.6706112 | E18: 0
A19: Installation of cogeneration units | B19: MAX | C19: Installation of cogeneration units#MAX | D19: 438.2417129 | E19: 0.5
A20: Installation of cogeneration units | B20: MIN | C20: Installation of cogeneration units#MIN | D20: 438.2417129 | E20: 0
A21: Installation of cogeneration units | B21: TYP | C21: Installation of cogeneration units#TYP | D21: 876.4834258 | E21: 0.1666666667
A22: Installation of frequency inventors | B22: MAX | C22: Installation of frequency inventors#MAX | D22: 404.7760553 | E22: 0.5833333333
A23: Installation of frequency inventors | B23: MIN | C23: Installation of frequency inventors#MIN | D23: 44.97511726 | E23: 0
A24: Installation of frequency inventors | B24: TYP | C24: Installation of frequency inventors#TYP | D24: 449.7511726 | E24: 0.1666666667
A25: Installation of heat pumps | B25: MAX | C25: Installation of heat pumps#MAX | D25: 5075.046659 | E25: 0.5
A26: Installation of heat pumps | B26: MIN | C26: Installation of heat pumps#MIN | D26: 676.6728878 | E26: 0
A27: Installation of heat pumps | B27: TYP | C27: Installation of heat pumps#TYP | D27: 2706.691551 | E27: 0.1666666667
A28: Installation of photovoltaic systems (for electricity generation) | B28: MAX | C28: Installation of photovoltaic systems (for electricity generation)#MAX | D28: 1703.154849 | E28: 0.8214285714
A29: Installation of photovoltaic systems (for electricity generation) | B29: MIN | C29: Installation of photovoltaic systems (for electricity generation)#MIN | D29: 340.6309698 | E29: 0.5
A30: Installation of photovoltaic systems (for electricity generation) | B30: TYP | C30: Installation of photovoltaic systems (for electricity generation)#TYP | D30: 4768.833578 | E30: 0.7368421053
A31: Installation of solar thermal systems (for heat generation) | B31: MAX | C31: Installation of solar thermal systems (for heat generation)#MAX | D31: 37.59020462 | E31: 0.8214285714
A32: Installation of solar thermal systems (for heat generation) | B32: MIN | C32: Installation of solar thermal systems (for heat generation)#MIN | D32: 16.11008769 | E32: 0.6666666667
A33: Installation of solar thermal systems (for heat generation) | B33: TYP | C33: =A33 & "#" & B33 -> Installation of solar thermal systems (for heat generation)#TYP | D33: 53.70029232 | E33: 0.8
A34: Installation/replacement of compressors | B34: MAX | C34: Installation/replacement of compressors#MAX | D34: 2168.443154 | E34: 0.6666666667
A35: Installation/replacement of compressors | B35: MIN | C35: Installation/replacement of compressors#MIN | D35: 96.37525127 | E35: 0
A36: Installation/replacement of compressors | B36: TYP | C36: Installation/replacement of compressors#TYP | D36: 2553.944159 | E36: 0.4444444444
A37: Replacement of coal boiler with biomass boiler | B37: TYP | C37: =A37 & "#" & B37 -> Replacement of coal boiler with biomass boiler#TYP | D37: 520.4618695 | E37: 1.9
A38: Replacement of coal boiler with new coal boiler | B38: MAX | C38: Replacement of coal boiler with new coal boiler#MAX | D38: 1155.931174 | E38: 0.75
A39: Replacement of coal boilers with gas boilers | B39: MIN | C39: Replacement of coal boilers with gas boilers#MIN | D39: 519.4618695 | E39: 0.9
A40: Replacement of existing lighting with LED80 | B40: MAX | C40: Replacement of existing lighting with LED80#MAX | D40: 675.4824346 | E40: 0
A41: Replacement of lighting LED80 with LED110 | B41: MAX | C41: Replacement of lighting LED80 with LED110#MAX | D41: 111.1650571 | E41: 0.6666666667
A42: Replacement of lighting LED80 with LED110 | B42: MIN | C42: Replacement of lighting LED80 with LED110#MIN | D42: 27.79126428 | E42: 0
A43: Replacement of lighting LED80 with LED110 | B43: TYP | C43: Replacement of lighting LED80 with LED110#TYP | D43: 416.8689642 | E43: 0.2857142857
A44: Thermal insulation of technologies | B44: MAX | C44: Thermal insulation of technologies#MAX | D44: 2608.989078 | E44: 0.5
A45: Thermal insulation of technologies | B45: MIN | C45: Thermal insulation of technologies#MIN | D45: 237.1808253 | E45: 0
A46: Thermal insulation of technologies | B46: TYP | C46: Thermal insulation of technologies#TYP | D46: 1897.446603 | E46: 0.1666666667
A47: Transformers replacement | B47: MAX | C47: Transformers replacement#MAX | D47: 213.0400291 | E47: 0.6428571429
A48: Transformers replacement | B48: MIN | C48: Transformers replacement#MIN | D48: 213.0400291 | E48: 0.1666666667
A49: Transformers replacement | B49: TYP | C49: Transformers replacement#TYP | D49: 994.1868025 | E49: 0.5833333333
A50: Waste heat utilisation | B50: MAX | C50: Waste heat utilisation#MAX | D50: 1486.597711 | E50: 0.5833333333
A51: Waste heat utilisation | B51: MIN | C51: Waste heat utilisation#MIN | D51: 66.07100937 | E51: 0
A52: Waste heat utilisation | B52: TYP | C52: Waste heat utilisation#TYP | D52: 1750.881748 | E52: 0

Sheet Lists (hidden)
A1: Energy_saving_measures[List of energy saving measures]
A3: List of energy saving measures | C3: Saved energy carriers | E3: NIR sectors for energy savings | G3: Column1 | H3: Column2
A4: Buildings insulation | C4: All energy carriers | E4: Energy | G4: kWh | H4: 1
A5: Contol of circulation pumps | C5: Coal | E5: Industry | G5: MWh | H5: 0.001
A6: Decrease of losses in heat distribution | C6: Electricity | G6: GWh | H6: 1e-06
A7: Energy management | C7: Fuels and heat | G7: MJ | H7: 3.6
A8: Change of technological processes | C8: Fuels only | G8: GJ | H8: 0.0036
A9: Installation flue gas pre-heaters to boilers | C9: Gaseous biofuels | G9: TJ | H9: 3.6e-06
A10: Installation of cogeneration units | C10: Heat
A11: Installation of frequency inventors | C11: Liquid biofuels
A12: Installation of heat pumps | C12: Natural gas
A13: Installation of photovoltaic systems (for electricity generation) | C13: RES except biomass
A14: Installation of solar thermal systems (for heat generation) | C14: Solid biofuels
A15: Installation/replacement of compressors
A16: Replacement of coal boiler with new coal boiler
A17: Replacement of coal boilers with gas boilers
A18: Replacement of existing lighting with LED80
A19: Replacement of lighting LED80 with LED110
A20: Thermal insulation of technologies
A21: Transformers replacement
A22: Waste heat utilisation
